Department Family,Entity,Date,Expense Type,Expense area,Supplier,Transaction Number, Amount ,VAT registration Number
Department of Health,Salisbury NHS Foundation Trust,02-Sep-16,HEALTHCARE - NHS TRUSTS,Medicine,UNIVERSITY HOSPITAL SOUTHAMPTON NHS FOUNDATION TRUST,7279765,"59,548.12",
Department of Health,Salisbury NHS Foundation Trust,02-Sep-16,ENERGY - GAS,Corporate - ETS,CORONA ENERGY,11360616,"5,024.25",
Department of Health,Salisbury NHS Foundation Trust,02-Sep-16,ENERGY - GAS,Corporate - ETS,CORONA ENERGY,11360616,"44,210.37",
Department of Health,Salisbury NHS Foundation Trust,02-Sep-16,ENERGY - GAS,Corporate - ETS,CORONA ENERGY,11360616,251.21,
Department of Health,Salisbury NHS Foundation Trust,02-Sep-16,ENERGY - GAS,Corporate - ETS,CORONA ENERGY,11360616,"8,842.07",
Department of Health,Salisbury NHS Foundation Trust,02-Sep-16,HARD/SOFTWARE-COMPUTER SOFTWARE  SPECIALISED BESPOKE,Corporate - Finance & Procurement,ORACLE CORPORATION UK LTD,1557081,"27,709.20",
Department of Health,Salisbury NHS Foundation Trust,02-Sep-16,HARD/SOFTWARE-COMPUTER SOFTWARE  SPECIALISED BESPOKE,Corporate - Finance & Procurement,ORACLE CORPORATION UK LTD,1557081,"5,541.84",
Department of Health,Salisbury NHS Foundation Trust,02-Sep-16,LAB EQUIP-LAB EQUIPMENT FURNITURE,Clinical Support,KIESTRA LAB AUTOMATION,160025997,"37,967.82",
Department of Health,Salisbury NHS Foundation Trust,02-Sep-16,LAB EQUIP-LAB EQUIPMENT FURNITURE,Clinical Support,KIESTRA LAB AUTOMATION,160025997,"7,593.56",
Department of Health,Salisbury NHS Foundation Trust,02-Sep-16,HARD/SOFTWARE-COMPUTER SOFTWARE  SPECIALISED BESPOKE,Corporate - Finance & Procurement,GENESIS AUTOMATION UK LIMITED,47,"62,500.00",
Department of Health,Salisbury NHS Foundation Trust,02-Sep-16,HARD/SOFTWARE-COMPUTER SOFTWARE  SPECIALISED BESPOKE,Corporate - Finance & Procurement,GENESIS AUTOMATION UK LIMITED,47,"15,750.00",
Department of Health,Salisbury NHS Foundation Trust,02-Sep-16,HARD/SOFTWARE-COMPUTER SOFTWARE  SPECIALISED BESPOKE,Corporate - Finance & Procurement,GENESIS AUTOMATION UK LIMITED,47,"12,500.00",
Department of Health,Salisbury NHS Foundation Trust,02-Sep-16,HARD/SOFTWARE-COMPUTER SOFTWARE  SPECIALISED BESPOKE,Corporate - Finance & Procurement,GENESIS AUTOMATION UK LIMITED,47,"3,150.00",
Department of Health,Salisbury NHS Foundation Trust,02-Sep-16,HARD/SOFTWARE-COMPUTER SOFTWARE  SPECIALISED BESPOKE,Corporate - Finance & Procurement,GENESIS AUTOMATION UK LIMITED,48,"5,000.00",
Department of Health,Salisbury NHS Foundation Trust,02-Sep-16,HARD/SOFTWARE-COMPUTER SOFTWARE  SPECIALISED BESPOKE,Corporate - Finance & Procurement,GENESIS AUTOMATION UK LIMITED,48,"5,000.00",
Department of Health,Salisbury NHS Foundation Trust,02-Sep-16,HARD/SOFTWARE-COMPUTER SOFTWARE  SPECIALISED BESPOKE,Corporate - Finance & Procurement,GENESIS AUTOMATION UK LIMITED,48,"5,000.00",
Department of Health,Salisbury NHS Foundation Trust,02-Sep-16,HARD/SOFTWARE-COMPUTER SOFTWARE  SPECIALISED BESPOKE,Corporate - Finance & Procurement,GENESIS AUTOMATION UK LIMITED,48,"7,500.00",
Department of Health,Salisbury NHS Foundation Trust,02-Sep-16,HARD/SOFTWARE-COMPUTER SOFTWARE  SPECIALISED BESPOKE,Corporate - Finance & Procurement,GENESIS AUTOMATION UK LIMITED,48,"46,500.00",
Department of Health,Salisbury NHS Foundation Trust,02-Sep-16,HARD/SOFTWARE-COMPUTER SOFTWARE  SPECIALISED BESPOKE,Corporate - Finance & Procurement,GENESIS AUTOMATION UK LIMITED,48,"1,000.00",
Department of Health,Salisbury NHS Foundation Trust,02-Sep-16,HARD/SOFTWARE-COMPUTER SOFTWARE  SPECIALISED BESPOKE,Corporate - Finance & Procurement,GENESIS AUTOMATION UK LIMITED,48,"1,000.00",
Department of Health,Salisbury NHS Foundation Trust,02-Sep-16,HARD/SOFTWARE-COMPUTER SOFTWARE  SPECIALISED BESPOKE,Corporate - Finance & Procurement,GENESIS AUTOMATION UK LIMITED,48,"1,000.00",
Department of Health,Salisbury NHS Foundation Trust,02-Sep-16,HARD/SOFTWARE-COMPUTER SOFTWARE  SPECIALISED BESPOKE,Corporate - Finance & Procurement,GENESIS AUTOMATION UK LIMITED,48,"1,500.00",
Department of Health,Salisbury NHS Foundation Trust,02-Sep-16,HARD/SOFTWARE-COMPUTER SOFTWARE  SPECIALISED BESPOKE,Corporate - Finance & Procurement,GENESIS AUTOMATION UK LIMITED,48,"9,300.00",
Department of Health,Salisbury NHS Foundation Trust,02-Sep-16,DRUGS,Clinical Support,NOVARTIS PHARMACEUTICALS UK LTD,91656849,"23,078.69",
Department of Health,Salisbury NHS Foundation Trust,02-Sep-16,DRUGS,Clinical Support,NOVARTIS PHARMACEUTICALS UK LTD,91656849,"4,615.74",
Department of Health,Salisbury NHS Foundation Trust,02-Sep-16,DRUGS,Clinical Support,NOVARTIS PHARMACEUTICALS UK LTD,91658252,"22,262.91",
Department of Health,Salisbury NHS Foundation Trust,02-Sep-16,DRUGS,Clinical Support,NOVARTIS PHARMACEUTICALS UK LTD,91658252,"4,452.58",
Department of Health,Salisbury NHS Foundation Trust,02-Sep-16,DRUGS,Clinical Support,NOVARTIS PHARMACEUTICALS UK LTD,91664980,"23,366.54",
Department of Health,Salisbury NHS Foundation Trust,02-Sep-16,DRUGS,Clinical Support,NOVARTIS PHARMACEUTICALS UK LTD,91664980,"4,673.31",
Department of Health,Salisbury NHS Foundation Trust,02-Sep-16,BLDG STRUCTURES MAIN CONTR,Capital,C G FRY & SON LTD,IN6361,"61,963.87",
Department of Health,Salisbury NHS Foundation Trust,02-Sep-16,BLDG STRUCTURES MAIN CONTR,Capital,C G FRY & SON LTD,IN6361,"9,914.22",
Department of Health,Salisbury NHS Foundation Trust,09-Sep-16,LAB EQUIP-LABORATORY APPARATUS,Clinical Support,BECKMAN COULTER,1358510,"31,451.43",
Department of Health,Salisbury NHS Foundation Trust,09-Sep-16,LAB EQUIP-ANALYSERS,Clinical Support,BECKMAN COULTER,1360553,"127,881.12",
Department of Health,Salisbury NHS Foundation Trust,09-Sep-16,DI & RADIO-RADIOLOGY EQUIPMENT,Clinical Support,NHS SUPPLY CHAIN,201702241,"116,702.59",
Department of Health,Salisbury NHS Foundation Trust,09-Sep-16,ETS UNITARY CHARGE,Corporate - ETS,SALISBURY HEALTHCARE FACILITIES LTD,336,"292,017.19",
Department of Health,Salisbury NHS Foundation Trust,16-Sep-16,ENERGY - WATER,Corporate - ETS,BWBSL,7043951420,"36,395.76",
Department of Health,Salisbury NHS Foundation Trust,16-Sep-16,ENERGY - SEWERAGE,Corporate - ETS,BWBSL,7043951420,"14,418.51",
Department of Health,Salisbury NHS Foundation Trust,16-Sep-16,RATES,Corporate - ETS,WILTSHIRE COUNCIL,SEP 16 RATES,"109,718.00",
Department of Health,Salisbury NHS Foundation Trust,23-Sep-16,ENERGY - ELECTRICITY,Corporate - ETS,SCOTTISH POWER,104393274,"6,874.72",
Department of Health,Salisbury NHS Foundation Trust,23-Sep-16,ENERGY - ELECTRICITY,Corporate - ETS,SCOTTISH POWER,104393274,"55,622.71",
Department of Health,Salisbury NHS Foundation Trust,23-Sep-16,ENERGY - ELECTRICITY,Corporate - ETS,SCOTTISH POWER,104393274,343.74,
Department of Health,Salisbury NHS Foundation Trust,23-Sep-16,ENERGY - ELECTRICITY,Corporate - ETS,SCOTTISH POWER,104393274,"11,124.54",
Department of Health,Salisbury NHS Foundation Trust,23-Sep-16,HARD/SOFTWARE-COMPUTER SOFTWARE  OFF THE SHELF APPLICATIONS,Corporate - Finance & Procurement,MICAD SYSTEMS (UK) LTD,CS289,"17,000.00",
Department of Health,Salisbury NHS Foundation Trust,23-Sep-16,HARD/SOFTWARE-COMPUTER SOFTWARE  OFF THE SHELF APPLICATIONS,Corporate - Finance & Procurement,MICAD SYSTEMS (UK) LTD,CS289,"2,700.00",
Department of Health,Salisbury NHS Foundation Trust,23-Sep-16,HARD/SOFTWARE-COMPUTER SOFTWARE  OFF THE SHELF APPLICATIONS,Corporate - Finance & Procurement,MICAD SYSTEMS (UK) LTD,CS289,"1,000.00",
Department of Health,Salisbury NHS Foundation Trust,23-Sep-16,HARD/SOFTWARE-COMPUTER SOFTWARE  OFF THE SHELF APPLICATIONS,Corporate - Finance & Procurement,MICAD SYSTEMS (UK) LTD,CS289,"3,000.00",
Department of Health,Salisbury NHS Foundation Trust,23-Sep-16,HARD/SOFTWARE-COMPUTER SOFTWARE  OFF THE SHELF APPLICATIONS,Corporate - Finance & Procurement,MICAD SYSTEMS (UK) LTD,CS289,"1,000.00",
Department of Health,Salisbury NHS Foundation Trust,23-Sep-16,COMPUTER HARDWARE/SOFTWARE CONTRACTS,Corporate - Finance & Procurement,MICAD SYSTEMS (UK) LTD,CS289,850.00,
Department of Health,Salisbury NHS Foundation Trust,23-Sep-16,COMPUTER HARDWARE/SOFTWARE CONTRACTS,Corporate - Finance & Procurement,MICAD SYSTEMS (UK) LTD,CS289,"1,275.00",
Department of Health,Salisbury NHS Foundation Trust,23-Sep-16,HARD/SOFTWARE-COMPUTER SOFTWARE  OFF THE SHELF APPLICATIONS,Corporate - Finance & Procurement,MICAD SYSTEMS (UK) LTD,CS289,"3,400.00",
Department of Health,Salisbury NHS Foundation Trust,23-Sep-16,HARD/SOFTWARE-COMPUTER SOFTWARE  OFF THE SHELF APPLICATIONS,Corporate - Finance & Procurement,MICAD SYSTEMS (UK) LTD,CS289,540.00,
Department of Health,Salisbury NHS Foundation Trust,23-Sep-16,HARD/SOFTWARE-COMPUTER SOFTWARE  OFF THE SHELF APPLICATIONS,Corporate - Finance & Procurement,MICAD SYSTEMS (UK) LTD,CS289,200.00,
Department of Health,Salisbury NHS Foundation Trust,23-Sep-16,HARD/SOFTWARE-COMPUTER SOFTWARE  OFF THE SHELF APPLICATIONS,Corporate - Finance & Procurement,MICAD SYSTEMS (UK) LTD,CS289,600.00,
Department of Health,Salisbury NHS Foundation Trust,23-Sep-16,HARD/SOFTWARE-COMPUTER SOFTWARE  OFF THE SHELF APPLICATIONS,Corporate - Finance & Procurement,MICAD SYSTEMS (UK) LTD,CS289,200.00,
Department of Health,Salisbury NHS Foundation Trust,23-Sep-16,COMPUTER HARDWARE/SOFTWARE CONTRACTS,Corporate - Finance & Procurement,MICAD SYSTEMS (UK) LTD,CS289,170.00,
Department of Health,Salisbury NHS Foundation Trust,23-Sep-16,COMPUTER HARDWARE/SOFTWARE CONTRACTS,Corporate - Finance & Procurement,MICAD SYSTEMS (UK) LTD,CS289,255.00,
Department of Health,Salisbury NHS Foundation Trust,23-Sep-16,HARD/SOFTWARE-COMPUTER SOFTWARE  OFF THE SHELF APPLICATIONS,Corporate - Finance & Procurement,MICAD SYSTEMS (UK) LTD,CS289,"17,000.00",
Department of Health,Salisbury NHS Foundation Trust,23-Sep-16,HARD/SOFTWARE-COMPUTER SOFTWARE  OFF THE SHELF APPLICATIONS,Corporate - Finance & Procurement,MICAD SYSTEMS (UK) LTD,CS289,"2,700.00",
Department of Health,Salisbury NHS Foundation Trust,23-Sep-16,HARD/SOFTWARE-COMPUTER SOFTWARE  OFF THE SHELF APPLICATIONS,Corporate - Finance & Procurement,MICAD SYSTEMS (UK) LTD,CS289,"1,000.00",
Department of Health,Salisbury NHS Foundation Trust,23-Sep-16,HARD/SOFTWARE-COMPUTER SOFTWARE  OFF THE SHELF APPLICATIONS,Corporate - Finance & Procurement,MICAD SYSTEMS (UK) LTD,CS289,"3,000.00",
Department of Health,Salisbury NHS Foundation Trust,23-Sep-16,HARD/SOFTWARE-COMPUTER SOFTWARE  OFF THE SHELF APPLICATIONS,Corporate - Finance & Procurement,MICAD SYSTEMS (UK) LTD,CS289,"1,000.00",
Department of Health,Salisbury NHS Foundation Trust,23-Sep-16,COMPUTER HARDWARE/SOFTWARE CONTRACTS,Corporate - Finance & Procurement,MICAD SYSTEMS (UK) LTD,CS289,850.00,
Department of Health,Salisbury NHS Foundation Trust,23-Sep-16,COMPUTER HARDWARE/SOFTWARE CONTRACTS,Corporate - Finance & Procurement,MICAD SYSTEMS (UK) LTD,CS289,"1,275.00",
Department of Health,Salisbury NHS Foundation Trust,23-Sep-16,BLDG STRUCTURES MAIN CONTR,Capital,C G FRY & SON LTD,IN6395,"122,274.59",
Department of Health,Salisbury NHS Foundation Trust,23-Sep-16,BLDG STRUCTURES MAIN CONTR,Capital,C G FRY & SON LTD,IN6395,"19,563.94",
Department of Health,Salisbury NHS Foundation Trust,23-Sep-16,HARD/SOFTWARE-COMPUTER SOFTWARE  OFF THE SHELF APPLICATIONS,Corporate - Quality,ALLOCATE SOFTWARE PLC,INAL11566,"23,000.00",
Department of Health,Salisbury NHS Foundation Trust,23-Sep-16,NETWORKING COSTS,Capital,SOFTCAT LIMITED,INV01444718,"4,767.48",
Department of Health,Salisbury NHS Foundation Trust,23-Sep-16,NETWORKING COSTS,Capital,SOFTCAT LIMITED,INV01444718,"2,147.99",
Department of Health,Salisbury NHS Foundation Trust,23-Sep-16,NETWORKING COSTS,Capital,SOFTCAT LIMITED,INV01444718,"1,540.78",
Department of Health,Salisbury NHS Foundation Trust,23-Sep-16,NETWORKING COSTS,Capital,SOFTCAT LIMITED,INV01444718,"11,597.67",
Department of Health,Salisbury NHS Foundation Trust,23-Sep-16,NETWORKING COSTS,Capital,SOFTCAT LIMITED,INV01444718,667.48,
Department of Health,Salisbury NHS Foundation Trust,23-Sep-16,NETWORKING COSTS,Capital,SOFTCAT LIMITED,INV01444718,"2,308.30",
Department of Health,Salisbury NHS Foundation Trust,23-Sep-16,NETWORKING COSTS,Capital,SOFTCAT LIMITED,INV01444718,953.50,
Department of Health,Salisbury NHS Foundation Trust,23-Sep-16,NETWORKING COSTS,Capital,SOFTCAT LIMITED,INV01444718,429.60,
Department of Health,Salisbury NHS Foundation Trust,23-Sep-16,NETWORKING COSTS,Capital,SOFTCAT LIMITED,INV01444718,308.16,
Department of Health,Salisbury NHS Foundation Trust,23-Sep-16,NETWORKING COSTS,Capital,SOFTCAT LIMITED,INV01444718,"2,319.53",
Department of Health,Salisbury NHS Foundation Trust,23-Sep-16,NETWORKING COSTS,Capital,SOFTCAT LIMITED,INV01444718,133.50,
Department of Health,Salisbury NHS Foundation Trust,23-Sep-16,NETWORKING COSTS,Capital,SOFTCAT LIMITED,INV01444718,461.66,
Department of Health,Salisbury NHS Foundation Trust,30-Sep-16,M & S EQUIPELECTEQUIPINST - OTHER,Medicine,NHS LOGISTICS,1017098574,105.27,
Department of Health,Salisbury NHS Foundation Trust,30-Sep-16,MEDSURGCONS-OTHER,Surgery,NHS LOGISTICS,1017098574,371.43,
Department of Health,Salisbury NHS Foundation Trust,30-Sep-16,MEDSURGCONS-OTHER,Surgery,NHS LOGISTICS,1017098574,371.43,
Department of Health,Salisbury NHS Foundation Trust,30-Sep-16,SERVICES FROM NHS BODIES,Clinical Support,NHS LOGISTICS,1017098574,388.00,
Department of Health,Salisbury NHS Foundation Trust,30-Sep-16,OTHER MEDICAL SUPPLIES,Surgery,NHS LOGISTICS,1017098574,129.80,
Department of Health,Salisbury NHS Foundation Trust,30-Sep-16,OTHER MEDICAL SUPPLIES,Surgery,NHS LOGISTICS,1017098574,64.52,
Department of Health,Salisbury NHS Foundation Trust,30-Sep-16,OTHER MEDICAL SUPPLIES,Surgery,NHS LOGISTICS,1017098574,322.58,
Department of Health,Salisbury NHS Foundation Trust,30-Sep-16,PATIENT APPLIANCES,Surgery,NHS LOGISTICS,1017098574,85.60,
Department of Health,Salisbury NHS Foundation Trust,30-Sep-16,PATIENT APPLIANCES,Surgery,NHS LOGISTICS,1017098574,85.60,
Department of Health,Salisbury NHS Foundation Trust,30-Sep-16,PATIENT APPLIANCES,Surgery,NHS LOGISTICS,1017098574,21.40,
Department of Health,Salisbury NHS Foundation Trust,30-Sep-16,SERVICES FROM NHS BODIES,Clinical Support,NHS LOGISTICS,1017098574,32.97,
Department of Health,Salisbury NHS Foundation Trust,30-Sep-16,TISSUES HAND TOWELS & TOILET PAPER,Clinical Support,NHS LOGISTICS,1017098574,0.78,
Department of Health,Salisbury NHS Foundation Trust,30-Sep-16,MEDSURGCONS-OTHER,Clinical Support,NHS LOGISTICS,1017098574,45.65,
Department of Health,Salisbury NHS Foundation Trust,30-Sep-16,MEDSURGCONS-OTHER,Clinical Support,NHS LOGISTICS,1017098574,45.65,
Department of Health,Salisbury NHS Foundation Trust,30-Sep-16,MEDSURGCONS-OTHER,Clinical Support,NHS LOGISTICS,1017098574,13.87,
Department of Health,Salisbury NHS Foundation Trust,30-Sep-16,IN HOUSE - BUILDING,Corporate - ETS,NHS LOGISTICS,1017098574,14.60,
Department of Health,Salisbury NHS Foundation Trust,30-Sep-16,IN HOUSE - BUILDING,Corporate - ETS,NHS LOGISTICS,1017098574,20.30,
Department of Health,Salisbury NHS Foundation Trust,30-Sep-16,LAB EQUIP-LABORATORY APPARATUS,Surgery,NHS LOGISTICS,1017098574,33.93,
Department of Health,Salisbury NHS Foundation Trust,30-Sep-16,M & S EQUIPELECTEQUIPINST - OTHER,Surgery,NHS LOGISTICS,1017098574,114.58,
Department of Health,Salisbury NHS Foundation Trust,30-Sep-16,OTHER MEDICAL SUPPLIES,Clinical Support,NHS LOGISTICS,1017098574,61.04,
Department of Health,Salisbury NHS Foundation Trust,30-Sep-16,MEDSURGCONS-OTHER,Clinical Support,NHS LOGISTICS,1017098574,45.82,
Department of Health,Salisbury NHS Foundation Trust,30-Sep-16,ELECTRICAL EQUIPMENT,Musculo-Skeletal,NHS LOGISTICS,1017098574,1.67,
Department of Health,Salisbury NHS Foundation Trust,30-Sep-16,TISSUES HAND TOWELS & TOILET PAPER,Musculo-Skeletal,NHS LOGISTICS,1017098574,10.60,
Department of Health,Salisbury NHS Foundation Trust,30-Sep-16,COOKING & KITCHEN UTENSILS,Musculo-Skeletal,NHS LOGISTICS,1017098574,1.23,
Department of Health,Salisbury NHS Foundation Trust,30-Sep-16,SURGICAL INSTRUMENTS - GENERAL,Musculo-Skeletal,NHS LOGISTICS,1017098574,1.75,
Department of Health,Salisbury NHS Foundation Trust,30-Sep-16,OPTICAL  -  OTHER,Surgery,NHS LOGISTICS,1017098574,53.00,
Department of Health,Salisbury NHS Foundation Trust,30-Sep-16,MEDSURGCONS-OTHER,Clinical Support,NHS LOGISTICS,1017098574,38.05,
Department of Health,Salisbury NHS Foundation Trust,30-Sep-16,REFUSE DISPOSAL - CLINICAL CONT SERVICES,Corporate - ETS,NHS LOGISTICS,1017098574,368.05,
Department of Health,Salisbury NHS Foundation Trust,30-Sep-16,MED SURG EQUIP REP MAINT CLEANING,Clinical Support,NHS LOGISTICS,1017098574,110.42,
Department of Health,Salisbury NHS Foundation Trust,30-Sep-16,PATIENT APPLIANCES,Clinical Support,NHS LOGISTICS,1017098574,30.44,
Department of Health,Salisbury NHS Foundation Trust,30-Sep-16,DRUGS,Clinical Support,NHS LOGISTICS,1017098574,12.45,
Department of Health,Salisbury NHS Foundation Trust,30-Sep-16,MEDSURGCONS-OTHER,Surgery,NHS LOGISTICS,1017098574,9.69,
Department of Health,Salisbury NHS Foundation Trust,30-Sep-16,MEDSURGCONS-OTHER,Surgery,NHS LOGISTICS,1017098574,4.85,
Department of Health,Salisbury NHS Foundation Trust,30-Sep-16,MEDSURGCONS-OTHER,Surgery,NHS LOGISTICS,1017098574,101.80,
Department of Health,Salisbury NHS Foundation Trust,30-Sep-16,ADULTS HEARING AIDS,Surgery,NHS LOGISTICS,1017098574,75.00,
Department of Health,Salisbury NHS Foundation Trust,30-Sep-16,ADULTS HEARING AIDS,Surgery,NHS LOGISTICS,1017098574,774.33,
Department of Health,Salisbury NHS Foundation Trust,30-Sep-16,MEDSURGCONS-OTHER,Surgery,NHS LOGISTICS,1017098574,40.00,
Department of Health,Salisbury NHS Foundation Trust,30-Sep-16,TISSUES HAND TOWELS & TOILET PAPER,Surgery,NHS LOGISTICS,1017098574,10.60,
Department of Health,Salisbury NHS Foundation Trust,30-Sep-16,SURGICAL INSTRUMENTS - DISPOSABLE,Surgery,NHS LOGISTICS,1017098574,70.58,
Department of Health,Salisbury NHS Foundation Trust,30-Sep-16,M & S EQUIPELECTEQUIPINST - OTHER,Surgery,NHS LOGISTICS,1017098574,25.73,
Department of Health,Salisbury NHS Foundation Trust,30-Sep-16,DRESSINGS - PRE STERILE,Surgery,NHS LOGISTICS,1017098574,0.35,
Department of Health,Salisbury NHS Foundation Trust,30-Sep-16,TISSUES HAND TOWELS & TOILET PAPER,Surgery,NHS LOGISTICS,1017098574,3.70,
Department of Health,Salisbury NHS Foundation Trust,30-Sep-16,TISSUES HAND TOWELS & TOILET PAPER,Surgery,NHS LOGISTICS,1017098574,0.39,
Department of Health,Salisbury NHS Foundation Trust,30-Sep-16,BAGS SACKS - OTHER,Facilities,NHS LOGISTICS,1017098574,40.53,
Department of Health,Salisbury NHS Foundation Trust,30-Sep-16,LIQUID REFRESHMENTS,Facilities,NHS LOGISTICS,1017098574,3.91,
Department of Health,Salisbury NHS Foundation Trust,30-Sep-16,CLEANING MATERIALS PRODUCTS SUNDRIES,Facilities,NHS LOGISTICS,1017098574,2.20,
Department of Health,Salisbury NHS Foundation Trust,30-Sep-16,CLEANING MATERIALS PRODUCTS SUNDRIES,Facilities,NHS LOGISTICS,1017098574,16.53,
Department of Health,Salisbury NHS Foundation Trust,30-Sep-16,CLEANING MATERIALS PRODUCTS SUNDRIES,Facilities,NHS LOGISTICS,1017098574,27.50,
Department of Health,Salisbury NHS Foundation Trust,30-Sep-16,CLEANING MATERIALS PRODUCTS SUNDRIES,Facilities,NHS LOGISTICS,1017098574,20.40,
Department of Health,Salisbury NHS Foundation Trust,30-Sep-16,CLEANING MATERIALS PRODUCTS SUNDRIES,Facilities,NHS LOGISTICS,1017098574,85.20,
Department of Health,Salisbury NHS Foundation Trust,30-Sep-16,DISPOSABLE THEATRE DRAPES WIPES,Facilities,NHS LOGISTICS,1017098574,88.67,
Department of Health,Salisbury NHS Foundation Trust,30-Sep-16,CLEANING MATERIALS PRODUCTS SUNDRIES,Surgery,NHS LOGISTICS,1017098574,13.67,
Department of Health,Salisbury NHS Foundation Trust,30-Sep-16,DISPOSABLE THEATRE DRAPES WIPES,Surgery,NHS LOGISTICS,1017098574,3.24,
Department of Health,Salisbury NHS Foundation Trust,30-Sep-16,ADULTS HEARING AIDS,Surgery,NHS LOGISTICS,1017098574,3.22,
Department of Health,Salisbury NHS Foundation Trust,30-Sep-16,TISSUES HAND TOWELS & TOILET PAPER,Musculo-Skeletal,NHS LOGISTICS,1017098574,3.70,
Department of Health,Salisbury NHS Foundation Trust,30-Sep-16,MED SURG EQUIP REP MAINT CLEANING,Corporate - Finance & Procurement,NHS LOGISTICS,1017098574,391.30,
Department of Health,Salisbury NHS Foundation Trust,30-Sep-16,MEDSURGCONS-OTHER,Medicine,NHS LOGISTICS,1017098574,408.17,
Department of Health,Salisbury NHS Foundation Trust,30-Sep-16,MEDSURGCONS-OTHER,Medicine,NHS LOGISTICS,1017098574,326.54,
Department of Health,Salisbury NHS Foundation Trust,30-Sep-16,MEDSURGCONS-OTHER,Medicine,NHS LOGISTICS,1017098574,81.63,
Department of Health,Salisbury NHS Foundation Trust,30-Sep-16,MEDSURGCONS-OTHER,Medicine,NHS LOGISTICS,1017098574,17.23,
Department of Health,Salisbury NHS Foundation Trust,30-Sep-16,DRESSINGS - PRE STERILE,Corporate - Finance & Procurement,NHS LOGISTICS,1017098574,97.00,
Department of Health,Salisbury NHS Foundation Trust,30-Sep-16,LAB EQUIP-ANALYSERS,Corporate - Finance & Procurement,NHS LOGISTICS,1017098574,120.00,
Department of Health,Salisbury NHS Foundation Trust,30-Sep-16,DISPOSABLE THEATRE DRAPES WIPES,Corporate - Finance & Procurement,NHS LOGISTICS,1017098574,31.50,
Department of Health,Salisbury NHS Foundation Trust,30-Sep-16,DISPOSABLE THEATRE DRAPES WIPES,Corporate - Finance & Procurement,NHS LOGISTICS,1017098574,77.00,
Department of Health,Salisbury NHS Foundation Trust,30-Sep-16,CLEANING MATERIALS PRODUCTS SUNDRIES,Facilities,NHS LOGISTICS,1017098574,6.08,
Department of Health,Salisbury NHS Foundation Trust,30-Sep-16,HEALTHCARE - WEAR,Facilities,NHS LOGISTICS,1017098574,27.55,
Department of Health,Salisbury NHS Foundation Trust,30-Sep-16,MEDSURGCONS-OTHER,Facilities,NHS LOGISTICS,1017098574,11.00,
Department of Health,Salisbury NHS Foundation Trust,30-Sep-16,M & S EQUIPELECTEQUIPINST - OTHER,Clinical Support,NHS LOGISTICS,1017098574,52.08,
Department of Health,Salisbury NHS Foundation Trust,30-Sep-16,PATIENT APPLIANCES,Clinical Support,NHS LOGISTICS,1017098574,95.70,
Department of Health,Salisbury NHS Foundation Trust,30-Sep-16,PATIENT APPLIANCES,Clinical Support,NHS LOGISTICS,1017098574,24.50,
Department of Health,Salisbury NHS Foundation Trust,30-Sep-16,PATIENT APPLIANCES,Clinical Support,NHS LOGISTICS,1017098574,60.88,
Department of Health,Salisbury NHS Foundation Trust,30-Sep-16,TISSUES HAND TOWELS & TOILET PAPER,Clinical Support,NHS LOGISTICS,1017098574,3.70,
Department of Health,Salisbury NHS Foundation Trust,30-Sep-16,TISSUES HAND TOWELS & TOILET PAPER,Clinical Support,NHS LOGISTICS,1017098574,10.60,
Department of Health,Salisbury NHS Foundation Trust,30-Sep-16,SERVICES FROM NHS BODIES,Clinical Support,NHS LOGISTICS,1017098574,6.60,
Department of Health,Salisbury NHS Foundation Trust,30-Sep-16,PATIENT APPLIANCES,Clinical Support,NHS LOGISTICS,1017098574,57.67,
Department of Health,Salisbury NHS Foundation Trust,30-Sep-16,SURGICAL INSTRUMENTS - GENERAL,Clinical Support,NHS LOGISTICS,1017098574,61.17,
Department of Health,Salisbury NHS Foundation Trust,30-Sep-16,DISPOSABLE THEATRE DRAPES WIPES,Clinical Support,NHS LOGISTICS,1017098574,3.24,
Department of Health,Salisbury NHS Foundation Trust,30-Sep-16,MEDSURGCONS-OTHER,Musculo-Skeletal,NHS LOGISTICS,1017098574,4.85,
Department of Health,Salisbury NHS Foundation Trust,30-Sep-16,LAB EQUIP-LABORATORY APPARATUS,Clinical Support,NHS LOGISTICS,1017098574,37.85,
Department of Health,Salisbury NHS Foundation Trust,30-Sep-16,LAB EQUIP-LABORATORY APPARATUS,Clinical Support,NHS LOGISTICS,1017098574,296.67,
Department of Health,Salisbury NHS Foundation Trust,30-Sep-16,LAB EQUIP-ANALYSERS,Clinical Support,NHS LOGISTICS,1017098574,25.40,
Department of Health,Salisbury NHS Foundation Trust,30-Sep-16,LAB EQUIP-ANALYSERS,Clinical Support,NHS LOGISTICS,1017098574,61.50,
Department of Health,Salisbury NHS Foundation Trust,30-Sep-16,LAB EQUIP-LABORATORY APPARATUS,Clinical Support,NHS LOGISTICS,1017098574,655.08,
Department of Health,Salisbury NHS Foundation Trust,30-Sep-16,LAB EQUIP-LABORATORY APPARATUS,Clinical Support,NHS LOGISTICS,1017098574,51.33,
Department of Health,Salisbury NHS Foundation Trust,30-Sep-16,LAB EQUIP-LABORATORY APPARATUS,Clinical Support,NHS LOGISTICS,1017098574,32.08,
Department of Health,Salisbury NHS Foundation Trust,30-Sep-16,LAB EQUIP-LABORATORY APPARATUS,Clinical Support,NHS LOGISTICS,1017098574,62.08,
Department of Health,Salisbury NHS Foundation Trust,30-Sep-16,DRESSINGS  -  PROCEDURE PACKS,Clinical Support,NHS LOGISTICS,1017098574,42.56,
Department of Health,Salisbury NHS Foundation Trust,30-Sep-16,COOKING & KITCHEN UTENSILS,Clinical Support,NHS LOGISTICS,1017098574,12.25,
Department of Health,Salisbury NHS Foundation Trust,30-Sep-16,LAB EQUIP-LABORATORY APPARATUS,Clinical Support,NHS LOGISTICS,1017098574,3.15,
Department of Health,Salisbury NHS Foundation Trust,30-Sep-16,LAB EQUIP-LABORATORY APPARATUS,Clinical Support,NHS LOGISTICS,1017098574,73.20,
Department of Health,Salisbury NHS Foundation Trust,30-Sep-16,OTHER MEDICAL SUPPLIES,Clinical Support,NHS LOGISTICS,1017098574,455.00,
Department of Health,Salisbury NHS Foundation Trust,30-Sep-16,TISSUES HAND TOWELS & TOILET PAPER,Clinical Support,NHS LOGISTICS,1017098574,3.70,
Department of Health,Salisbury NHS Foundation Trust,30-Sep-16,TISSUES HAND TOWELS & TOILET PAPER,Clinical Support,NHS LOGISTICS,1017098574,10.60,
Department of Health,Salisbury NHS Foundation Trust,30-Sep-16,MEDSURGCONS-OTHER,Surgery,NHS LOGISTICS,1017098574,11.66,
Department of Health,Salisbury NHS Foundation Trust,30-Sep-16,TISSUES HAND TOWELS & TOILET PAPER,Surgery,NHS LOGISTICS,1017098574,3.70,
Department of Health,Salisbury NHS Foundation Trust,30-Sep-16,BEVERAGES & AMBIENT FOOD,Surgery,NHS LOGISTICS,1017098574,10.81,
Department of Health,Salisbury NHS Foundation Trust,30-Sep-16,DISPOSABLE THEATRE DRAPES WIPES,Surgery,NHS LOGISTICS,1017098574,22.77,
Department of Health,Salisbury NHS Foundation Trust,30-Sep-16,DRUGS,Surgery,NHS LOGISTICS,1017098574,16.60,
Department of Health,Salisbury NHS Foundation Trust,30-Sep-16,SURGICAL INSTRUMENTS - GENERAL,Surgery,NHS LOGISTICS,1017098574,29.17,
Department of Health,Salisbury NHS Foundation Trust,30-Sep-16,DRUGS,Surgery,NHS LOGISTICS,1017098574,7.77,
Department of Health,Salisbury NHS Foundation Trust,30-Sep-16,MEDSURGCONS-SUTURES,Surgery,NHS LOGISTICS,1017098574,107.42,
Department of Health,Salisbury NHS Foundation Trust,30-Sep-16,TISSUES HAND TOWELS & TOILET PAPER,Medicine,NHS LOGISTICS,1017098574,7.40,
Department of Health,Salisbury NHS Foundation Trust,30-Sep-16,PATIENT APPLIANCES,Medicine,NHS LOGISTICS,1017098574,4.39,
Department of Health,Salisbury NHS Foundation Trust,30-Sep-16,TISSUES HAND TOWELS & TOILET PAPER,Musculo-Skeletal,NHS LOGISTICS,1017098574,3.70,
Department of Health,Salisbury NHS Foundation Trust,30-Sep-16,TISSUES HAND TOWELS & TOILET PAPER,Musculo-Skeletal,NHS LOGISTICS,1017098574,0.78,
Department of Health,Salisbury NHS Foundation Trust,30-Sep-16,DISPOSABLE THEATRE DRAPES WIPES,Musculo-Skeletal,NHS LOGISTICS,1017098574,6.48,
Department of Health,Salisbury NHS Foundation Trust,30-Sep-16,TISSUES HAND TOWELS & TOILET PAPER,Clinical Support,NHS LOGISTICS,1017098574,3.70,
Department of Health,Salisbury NHS Foundation Trust,30-Sep-16,TISSUES HAND TOWELS & TOILET PAPER,Clinical Support,NHS LOGISTICS,1017098574,10.60,
Department of Health,Salisbury NHS Foundation Trust,30-Sep-16,TISSUES HAND TOWELS & TOILET PAPER,Clinical Support,NHS LOGISTICS,1017098574,1.57,
Department of Health,Salisbury NHS Foundation Trust,30-Sep-16,ANAESTHETIC EQUIPMENT ACCESSORIES,Surgery,NHS LOGISTICS,1017098574,50.28,
Department of Health,Salisbury NHS Foundation Trust,30-Sep-16,DRESSINGS - PRE STERILE,Surgery,NHS LOGISTICS,1017098574,16.73,
Department of Health,Salisbury NHS Foundation Trust,30-Sep-16,DRESSINGS - PRE STERILE,Surgery,NHS LOGISTICS,1017098574,2.05,
Department of Health,Salisbury NHS Foundation Trust,30-Sep-16,DRESSINGS - PRE STERILE,Surgery,NHS LOGISTICS,1017098574,6.22,
Department of Health,Salisbury NHS Foundation Trust,30-Sep-16,DRESSINGS - PRE STERILE,Surgery,NHS LOGISTICS,1017098574,20.38,
Department of Health,Salisbury NHS Foundation Trust,30-Sep-16,DRESSINGS - PRE STERILE,Surgery,NHS LOGISTICS,1017098574,10.19,
Department of Health,Salisbury NHS Foundation Trust,30-Sep-16,TISSUES HAND TOWELS & TOILET PAPER,Surgery,NHS LOGISTICS,1017098574,5.70,
Department of Health,Salisbury NHS Foundation Trust,30-Sep-16,TISSUES HAND TOWELS & TOILET PAPER,Surgery,NHS LOGISTICS,1017098574,10.60,
Department of Health,Salisbury NHS Foundation Trust,30-Sep-16,OTHER MEDICAL SUPPLIES,Surgery,NHS LOGISTICS,1017098574,4.69,
Department of Health,Salisbury NHS Foundation Trust,30-Sep-16,TISSUES HAND TOWELS & TOILET PAPER,Musculo-Skeletal,NHS LOGISTICS,1017098574,1.85,
Department of Health,Salisbury NHS Foundation Trust,30-Sep-16,DRESSINGS - PRE STERILE,Musculo-Skeletal,NHS LOGISTICS,1017098574,5.92,
Department of Health,Salisbury NHS Foundation Trust,30-Sep-16,MEDSURGCONS-OTHER,Musculo-Skeletal,NHS LOGISTICS,1017098574,19.27,
Department of Health,Salisbury NHS Foundation Trust,30-Sep-16,NON DISPOSABLE BED LINEN,Musculo-Skeletal,NHS LOGISTICS,1017098574,9.77,
Department of Health,Salisbury NHS Foundation Trust,30-Sep-16,OTHER MEDICAL SUPPLIES,Musculo-Skeletal,NHS LOGISTICS,1017098574,5.58,
Department of Health,Salisbury NHS Foundation Trust,30-Sep-16,MEDSURGCONS-OTHER,Musculo-Skeletal,NHS LOGISTICS,1017098574,4.85,
Department of Health,Salisbury NHS Foundation Trust,30-Sep-16,DISPOSABLE THEATRE DRAPES WIPES,Musculo-Skeletal,NHS LOGISTICS,1017098574,3.24,
Department of Health,Salisbury NHS Foundation Trust,30-Sep-16,DRESSINGS - PRE STERILE,Surgery,NHS LOGISTICS,1017098574,6.16,
Department of Health,Salisbury NHS Foundation Trust,30-Sep-16,CLEANING MATERIALS PRODUCTS SUNDRIES,Surgery,NHS LOGISTICS,1017098574,13.67,
Department of Health,Salisbury NHS Foundation Trust,30-Sep-16,TISSUES HAND TOWELS & TOILET PAPER,Surgery,NHS LOGISTICS,1017098574,0.70,
Department of Health,Salisbury NHS Foundation Trust,30-Sep-16,DISPOSABLE THEATRE DRAPES WIPES,Surgery,NHS LOGISTICS,1017098574,3.24,
Department of Health,Salisbury NHS Foundation Trust,30-Sep-16,TISSUES HAND TOWELS & TOILET PAPER,Surgery,NHS LOGISTICS,1017098574,1.85,
Department of Health,Salisbury NHS Foundation Trust,30-Sep-16,ANAESTHETIC EQUIPMENT ACCESSORIES,Surgery,NHS LOGISTICS,1017098574,3.25,
Department of Health,Salisbury NHS Foundation Trust,30-Sep-16,PATIENT APPLIANCES,Surgery,NHS LOGISTICS,1017098574,4.39,
Department of Health,Salisbury NHS Foundation Trust,30-Sep-16,TOILETRIES PERSONAL HYGIENE PRODUCTS,Surgery,NHS LOGISTICS,1017098574,4.15,
Department of Health,Salisbury NHS Foundation Trust,30-Sep-16,MEDSURGCONS-OTHER,Surgery,NHS LOGISTICS,1017098574,14.30,
Department of Health,Salisbury NHS Foundation Trust,30-Sep-16,MEDSURGCONS-OTHER,Surgery,NHS LOGISTICS,1017098574,3.99,
Department of Health,Salisbury NHS Foundation Trust,30-Sep-16,MEDSURGCONS-OTHER,Surgery,NHS LOGISTICS,1017098574,6.89,
Department of Health,Salisbury NHS Foundation Trust,30-Sep-16,M & S EQUIPELECTEQUIPINST - OTHER,Surgery,NHS LOGISTICS,1017098574,1.49,
Department of Health,Salisbury NHS Foundation Trust,30-Sep-16,OTHER MEDICAL SUPPLIES,Surgery,NHS LOGISTICS,1017098574,12.27,
Department of Health,Salisbury NHS Foundation Trust,30-Sep-16,OTHER MEDICAL SUPPLIES,Surgery,NHS LOGISTICS,1017098574,24.68,
Department of Health,Salisbury NHS Foundation Trust,30-Sep-16,MEDSURGCONS-OTHER,Surgery,NHS LOGISTICS,1017098574,19.68,
Department of Health,Salisbury NHS Foundation Trust,30-Sep-16,DISPOSABLE THEATRE DRAPES WIPES,Surgery,NHS LOGISTICS,1017098574,3.24,
Department of Health,Salisbury NHS Foundation Trust,30-Sep-16,DRESSINGS - PRE STERILE,Surgery,NHS LOGISTICS,1017098574,19.48,
Department of Health,Salisbury NHS Foundation Trust,30-Sep-16,DRESSINGS - PRE STERILE,Clinical Support,NHS LOGISTICS,1017098574,100.47,
Department of Health,Salisbury NHS Foundation Trust,30-Sep-16,DRESSINGS - PRE STERILE,Clinical Support,NHS LOGISTICS,1017098574,18.04,
Department of Health,Salisbury NHS Foundation Trust,30-Sep-16,DRESSINGS - PRE STERILE,Clinical Support,NHS LOGISTICS,1017098574,31.33,
Department of Health,Salisbury NHS Foundation Trust,30-Sep-16,DRESSINGS - PRE STERILE,Clinical Support,NHS LOGISTICS,1017098574,144.13,
Department of Health,Salisbury NHS Foundation Trust,30-Sep-16,TOILETRIES PERSONAL HYGIENE PRODUCTS,Clinical Support,NHS LOGISTICS,1017098574,7.23,
Department of Health,Salisbury NHS Foundation Trust,30-Sep-16,DRESSINGS - PRE STERILE,Clinical Support,NHS LOGISTICS,1017098574,26.04,
Department of Health,Salisbury NHS Foundation Trust,30-Sep-16,DRESSINGS - PRE STERILE,Clinical Support,NHS LOGISTICS,1017098574,95.37,
Department of Health,Salisbury NHS Foundation Trust,30-Sep-16,DRESSINGS - PRE STERILE,Clinical Support,NHS LOGISTICS,1017098574,31.17,
Department of Health,Salisbury NHS Foundation Trust,30-Sep-16,DRESSINGS - PRE STERILE,Clinical Support,NHS LOGISTICS,1017098574,67.04,
Department of Health,Salisbury NHS Foundation Trust,30-Sep-16,DRESSINGS - PRE STERILE,Clinical Support,NHS LOGISTICS,1017098574,71.83,
Department of Health,Salisbury NHS Foundation Trust,30-Sep-16,DRESSINGS - PRE STERILE,Clinical Support,NHS LOGISTICS,1017098574,66.53,
Department of Health,Salisbury NHS Foundation Trust,30-Sep-16,DRESSINGS - PRE STERILE,Clinical Support,NHS LOGISTICS,1017098574,11.83,
Department of Health,Salisbury NHS Foundation Trust,30-Sep-16,SERVICES FROM NHS BODIES,Clinical Support,NHS LOGISTICS,1017098574,72.00,
Department of Health,Salisbury NHS Foundation Trust,30-Sep-16,MED SURG EQUIP REP MAINT CLEANING,Clinical Support,NHS LOGISTICS,1017098574,40.13,
Department of Health,Salisbury NHS Foundation Trust,30-Sep-16,DRESSINGS - PRE STERILE,Clinical Support,NHS LOGISTICS,1017098574,120.53,
Department of Health,Salisbury NHS Foundation Trust,30-Sep-16,TISSUES HAND TOWELS & TOILET PAPER,Corporate - HR/Education,NHS LOGISTICS,1017098574,3.92,
Department of Health,Salisbury NHS Foundation Trust,30-Sep-16,TISSUES HAND TOWELS & TOILET PAPER,Medicine,NHS LOGISTICS,1017098574,1.85,
Department of Health,Salisbury NHS Foundation Trust,30-Sep-16,CLEANING MATERIALS PRODUCTS SUNDRIES,Medicine,NHS LOGISTICS,1017098574,5.45,
Department of Health,Salisbury NHS Foundation Trust,30-Sep-16,CLEANING MATERIALS PRODUCTS SUNDRIES,Medicine,NHS LOGISTICS,1017098574,25.93,
Department of Health,Salisbury NHS Foundation Trust,30-Sep-16,MEDSURGCONS-OTHER,Medicine,NHS LOGISTICS,1017098574,5.96,
Department of Health,Salisbury NHS Foundation Trust,30-Sep-16,TISSUES HAND TOWELS & TOILET PAPER,Medicine,NHS LOGISTICS,1017098574,0.35,
Department of Health,Salisbury NHS Foundation Trust,30-Sep-16,MISCELLANEOUS CONSUMABLE ITEMS,Clinical Support,NHS LOGISTICS,1017098574,87.08,
Department of Health,Salisbury NHS Foundation Trust,30-Sep-16,BAGS SACKS - OTHER,Surgery,NHS LOGISTICS,1017098574,12.02,
Department of Health,Salisbury NHS Foundation Trust,30-Sep-16,DISPOSABLE THEATRE DRAPES WIPES,Surgery,NHS LOGISTICS,1017098574,22.77,
Department of Health,Salisbury NHS Foundation Trust,30-Sep-16,DRUGS,Surgery,NHS LOGISTICS,1017098574,33.20,
Department of Health,Salisbury NHS Foundation Trust,30-Sep-16,MEDSURGCONS-OTHER,Surgery,NHS LOGISTICS,1017098574,10.76,
Department of Health,Salisbury NHS Foundation Trust,30-Sep-16,MEDSURGCONS-OTHER,Surgery,NHS LOGISTICS,1017098574,10.76,
Department of Health,Salisbury NHS Foundation Trust,30-Sep-16,OTHER MEDICAL SUPPLIES,Surgery,NHS LOGISTICS,1017098574,252.86,
Department of Health,Salisbury NHS Foundation Trust,30-Sep-16,DRUGS,Surgery,NHS LOGISTICS,1017098574,27.18,
Department of Health,Salisbury NHS Foundation Trust,30-Sep-16,CLEANING MATERIALS PRODUCTS SUNDRIES,Surgery,NHS LOGISTICS,1017098574,4.60,
Department of Health,Salisbury NHS Foundation Trust,30-Sep-16,DISPOSABLE THEATRE DRAPES WIPES,Surgery,NHS LOGISTICS,1017098574,3.24,
Department of Health,Salisbury NHS Foundation Trust,30-Sep-16,BEVERAGES & AMBIENT FOOD,Surgery,NHS LOGISTICS,1017098574,28.68,
Department of Health,Salisbury NHS Foundation Trust,30-Sep-16,BEVERAGES & AMBIENT FOOD,Surgery,NHS LOGISTICS,1017098574,1.44,
Department of Health,Salisbury NHS Foundation Trust,30-Sep-16,BEVERAGES & AMBIENT FOOD,Surgery,NHS LOGISTICS,1017098574,2.78,
Department of Health,Salisbury NHS Foundation Trust,30-Sep-16,MEDSURGCONS-OTHER,Musculo-Skeletal,NHS LOGISTICS,1017098574,42.93,
Department of Health,Salisbury NHS Foundation Trust,30-Sep-16,NON DISPOSABLE BED LINEN,Musculo-Skeletal,NHS LOGISTICS,1017098574,15.06,
Department of Health,Salisbury NHS Foundation Trust,30-Sep-16,MEDSURGCONS-OTHER,Musculo-Skeletal,NHS LOGISTICS,1017098574,11.95,
Department of Health,Salisbury NHS Foundation Trust,30-Sep-16,LAB EQUIP-LABORATORY APPARATUS,Musculo-Skeletal,NHS LOGISTICS,1017098574,1.98,
Department of Health,Salisbury NHS Foundation Trust,30-Sep-16,DISPOSABLE THEATRE DRAPES WIPES,Musculo-Skeletal,NHS LOGISTICS,1017098574,19.45,
Department of Health,Salisbury NHS Foundation Trust,30-Sep-16,TISSUES HAND TOWELS & TOILET PAPER,Clinical Support,NHS LOGISTICS,1017098574,21.20,
Department of Health,Salisbury NHS Foundation Trust,30-Sep-16,LAB EQUIP-LABORATORY APPARATUS,Clinical Support,NHS LOGISTICS,1017098574,7.55,
Department of Health,Salisbury NHS Foundation Trust,30-Sep-16,NON DISPOSABLE BED LINEN,Clinical Support,NHS LOGISTICS,1017098574,13.13,
Department of Health,Salisbury NHS Foundation Trust,30-Sep-16,MED SURG EQUIP REP MAINT CLEANING,Clinical Support,NHS LOGISTICS,1017098574,110.42,
Department of Health,Salisbury NHS Foundation Trust,30-Sep-16,M & S EQUIPELECTEQUIPINST - OTHER,Clinical Support,NHS LOGISTICS,1017098574,197.92,
Department of Health,Salisbury NHS Foundation Trust,30-Sep-16,TISSUES HAND TOWELS & TOILET PAPER,Clinical Support,NHS LOGISTICS,1017098574,0.39,
Department of Health,Salisbury NHS Foundation Trust,30-Sep-16,SURGICAL INSTRUMENTS - DISPOSABLE,Clinical Support,NHS LOGISTICS,1017098574,28.23,
Department of Health,Salisbury NHS Foundation Trust,30-Sep-16,DRESSINGS - PRE STERILE,Clinical Support,NHS LOGISTICS,1017098574,8.87,
Department of Health,Salisbury NHS Foundation Trust,30-Sep-16,OTHER MEDICAL SUPPLIES,Clinical Support,NHS LOGISTICS,1017098574,74.97,
Department of Health,Salisbury NHS Foundation Trust,30-Sep-16,DISPOSABLE THEATRE DRAPES WIPES,Clinical Support,NHS LOGISTICS,1017098574,3.24,
Department of Health,Salisbury NHS Foundation Trust,30-Sep-16,ADULTS HEARING AIDS,Surgery,NHS LOGISTICS,1017098574,"3,737.42",
Department of Health,Salisbury NHS Foundation Trust,30-Sep-16,DRESSINGS - PRE STERILE,Clinical Support,NHS LOGISTICS,1017098574,7.64,
Department of Health,Salisbury NHS Foundation Trust,30-Sep-16,DRESSINGS - PRE STERILE,Clinical Support,NHS LOGISTICS,1017098574,4.52,
Department of Health,Salisbury NHS Foundation Trust,30-Sep-16,DRESSINGS - PRE STERILE,Clinical Support,NHS LOGISTICS,1017098574,6.16,
Department of Health,Salisbury NHS Foundation Trust,30-Sep-16,PATIENTS BEDWEAR UNISEX,Clinical Support,NHS LOGISTICS,1017098574,65.43,
Department of Health,Salisbury NHS Foundation Trust,30-Sep-16,CLEANING MATERIALS PRODUCTS SUNDRIES,Clinical Support,NHS LOGISTICS,1017098574,7.05,
Department of Health,Salisbury NHS Foundation Trust,30-Sep-16,M & S EQUIPELECTEQUIPINST - OTHER,Clinical Support,NHS LOGISTICS,1017098574,2.90,
Department of Health,Salisbury NHS Foundation Trust,30-Sep-16,MEDSURGCONS-OTHER,Clinical Support,NHS LOGISTICS,1017098574,9.70,
Department of Health,Salisbury NHS Foundation Trust,30-Sep-16,MEDSURGCONS-OTHER,Clinical Support,NHS LOGISTICS,1017098574,7.98,
Department of Health,Salisbury NHS Foundation Trust,30-Sep-16,MEDSURGCONS-OTHER,Clinical Support,NHS LOGISTICS,1017098574,6.89,
Department of Health,Salisbury NHS Foundation Trust,30-Sep-16,M & S EQUIPELECTEQUIPINST - OTHER,Clinical Support,NHS LOGISTICS,1017098574,1.49,
Department of Health,Salisbury NHS Foundation Trust,30-Sep-16,DISPOSABLE THEATRE DRAPES WIPES,Clinical Support,NHS LOGISTICS,1017098574,6.48,
Department of Health,Salisbury NHS Foundation Trust,30-Sep-16,DRESSINGS - PRE STERILE,Medicine,NHS LOGISTICS,1017098574,7.64,
Department of Health,Salisbury NHS Foundation Trust,30-Sep-16,DRESSINGS - PRE STERILE,Medicine,NHS LOGISTICS,1017098574,6.13,
Department of Health,Salisbury NHS Foundation Trust,30-Sep-16,MEDSURGCONS-OTHER,Medicine,NHS LOGISTICS,1017098574,5.20,
Department of Health,Salisbury NHS Foundation Trust,30-Sep-16,OTHER MEDICAL SUPPLIES,Medicine,NHS LOGISTICS,1017098574,9.28,
Department of Health,Salisbury NHS Foundation Trust,30-Sep-16,MEDSURGCONS-OTHER,Medicine,NHS LOGISTICS,1017098574,59.78,
Department of Health,Salisbury NHS Foundation Trust,30-Sep-16,MEDSURGCONS-OTHER,Medicine,NHS LOGISTICS,1017098574,4.85,
Department of Health,Salisbury NHS Foundation Trust,30-Sep-16,LAB EQUIP-LABORATORY APPARATUS,Medicine,NHS LOGISTICS,1017098574,7.90,
Department of Health,Salisbury NHS Foundation Trust,30-Sep-16,DISPOSABLE THEATRE DRAPES WIPES,Medicine,NHS LOGISTICS,1017098574,9.73,
Department of Health,Salisbury NHS Foundation Trust,30-Sep-16,DISPOSABLE THEATRE DRAPES WIPES,Medicine,NHS LOGISTICS,1017098574,3.24,
Department of Health,Salisbury NHS Foundation Trust,30-Sep-16,EGGS MILK OTHER DAIRY PRODUCTS,Clinical Support,NHS LOGISTICS,1017098574,21.10,
Department of Health,Salisbury NHS Foundation Trust,30-Sep-16,DRESSINGS - PRE STERILE,Medicine,NHS LOGISTICS,1017098574,7.64,
Department of Health,Salisbury NHS Foundation Trust,30-Sep-16,TISSUES HAND TOWELS & TOILET PAPER,Medicine,NHS LOGISTICS,1017098574,3.70,
Department of Health,Salisbury NHS Foundation Trust,30-Sep-16,PATIENT APPLIANCES,Medicine,NHS LOGISTICS,1017098574,13.18,
Department of Health,Salisbury NHS Foundation Trust,30-Sep-16,PATIENT APPLIANCES,Medicine,NHS LOGISTICS,1017098574,13.18,
Department of Health,Salisbury NHS Foundation Trust,30-Sep-16,PATIENT APPLIANCES,Medicine,NHS LOGISTICS,1017098574,13.18,
Department of Health,Salisbury NHS Foundation Trust,30-Sep-16,TISSUES HAND TOWELS & TOILET PAPER,Medicine,NHS LOGISTICS,1017098574,0.35,
Department of Health,Salisbury NHS Foundation Trust,30-Sep-16,DISPOSABLE THEATRE DRAPES WIPES,Medicine,NHS LOGISTICS,1017098574,3.24,
Department of Health,Salisbury NHS Foundation Trust,30-Sep-16,MEDSURGCONS-OTHER,Surgery,NHS LOGISTICS,1017098574,204.08,
Department of Health,Salisbury NHS Foundation Trust,30-Sep-16,TISSUES HAND TOWELS & TOILET PAPER,Surgery,NHS LOGISTICS,1017098574,1.85,
Department of Health,Salisbury NHS Foundation Trust,30-Sep-16,MEDSURGCONS-OTHER,Surgery,NHS LOGISTICS,1017098574,60.85,
Department of Health,Salisbury NHS Foundation Trust,30-Sep-16,DISPOSABLE THEATRE DRAPES WIPES,Surgery,NHS LOGISTICS,1017098574,6.48,
Department of Health,Salisbury NHS Foundation Trust,30-Sep-16,TISSUES HAND TOWELS & TOILET PAPER,Medicine,NHS LOGISTICS,1017098574,1.05,
Department of Health,Salisbury NHS Foundation Trust,30-Sep-16,TISSUES HAND TOWELS & TOILET PAPER,Surgery,NHS LOGISTICS,1017098574,0.69,
Department of Health,Salisbury NHS Foundation Trust,30-Sep-16,TISSUES HAND TOWELS & TOILET PAPER,Surgery,NHS LOGISTICS,1017098574,5.55,
Department of Health,Salisbury NHS Foundation Trust,30-Sep-16,TISSUES HAND TOWELS & TOILET PAPER,Surgery,NHS LOGISTICS,1017098574,0.78,
Department of Health,Salisbury NHS Foundation Trust,30-Sep-16,DISPOSABLE THEATRE DRAPES WIPES,Surgery,NHS LOGISTICS,1017098574,2.08,
Department of Health,Salisbury NHS Foundation Trust,30-Sep-16,SURGICAL INSTRUMENTS - DISPOSABLE,Clinical Support,NHS LOGISTICS,1017098574,56.47,
Department of Health,Salisbury NHS Foundation Trust,30-Sep-16,MEDSURGCONS-SUTURES,Surgery,NHS LOGISTICS,1017098574,12.57,
Department of Health,Salisbury NHS Foundation Trust,30-Sep-16,SURGICAL INSTRUMENTS - GENERAL,Medicine,NHS LOGISTICS,1017098574,19.67,
Department of Health,Salisbury NHS Foundation Trust,30-Sep-16,TISSUES HAND TOWELS & TOILET PAPER,Medicine,NHS LOGISTICS,1017098574,1.40,
Department of Health,Salisbury NHS Foundation Trust,30-Sep-16,DISPOSABLE THEATRE DRAPES WIPES,Medicine,NHS LOGISTICS,1017098574,6.48,
Department of Health,Salisbury NHS Foundation Trust,30-Sep-16,DRESSINGS - PRE STERILE,Musculo-Skeletal,NHS LOGISTICS,1017098574,6.42,
Department of Health,Salisbury NHS Foundation Trust,30-Sep-16,DRESSINGS - PRE STERILE,Musculo-Skeletal,NHS LOGISTICS,1017098574,47.58,
Department of Health,Salisbury NHS Foundation Trust,30-Sep-16,DRESSINGS - PRE STERILE,Musculo-Skeletal,NHS LOGISTICS,1017098574,53.76,
Department of Health,Salisbury NHS Foundation Trust,30-Sep-16,DRESSINGS - PRE STERILE,Musculo-Skeletal,NHS LOGISTICS,1017098574,20.25,
Department of Health,Salisbury NHS Foundation Trust,30-Sep-16,DRESSINGS - PRE STERILE,Musculo-Skeletal,NHS LOGISTICS,1017098574,21.88,
Department of Health,Salisbury NHS Foundation Trust,30-Sep-16,DRESSINGS - PRE STERILE,Musculo-Skeletal,NHS LOGISTICS,1017098574,20.25,
Department of Health,Salisbury NHS Foundation Trust,30-Sep-16,DRESSINGS - PRE STERILE,Musculo-Skeletal,NHS LOGISTICS,1017098574,20.25,
Department of Health,Salisbury NHS Foundation Trust,30-Sep-16,DRESSINGS - PRE STERILE,Musculo-Skeletal,NHS LOGISTICS,1017098574,43.75,
Department of Health,Salisbury NHS Foundation Trust,30-Sep-16,DRESSINGS - PRE STERILE,Musculo-Skeletal,NHS LOGISTICS,1017098574,23.28,
Department of Health,Salisbury NHS Foundation Trust,30-Sep-16,DRESSINGS - PRE STERILE,Musculo-Skeletal,NHS LOGISTICS,1017098574,23.28,
Department of Health,Salisbury NHS Foundation Trust,30-Sep-16,DRESSINGS - PRE STERILE,Musculo-Skeletal,NHS LOGISTICS,1017098574,25.03,
Department of Health,Salisbury NHS Foundation Trust,30-Sep-16,DRESSINGS - PRE STERILE,Musculo-Skeletal,NHS LOGISTICS,1017098574,50.05,
Department of Health,Salisbury NHS Foundation Trust,30-Sep-16,DRESSINGS - PRE STERILE,Musculo-Skeletal,NHS LOGISTICS,1017098574,12.10,
Department of Health,Salisbury NHS Foundation Trust,30-Sep-16,DRESSINGS - PRE STERILE,Musculo-Skeletal,NHS LOGISTICS,1017098574,6.68,
Department of Health,Salisbury NHS Foundation Trust,30-Sep-16,DRESSINGS - PRE STERILE,Musculo-Skeletal,NHS LOGISTICS,1017098574,7.38,
Department of Health,Salisbury NHS Foundation Trust,30-Sep-16,LAB EQUIP-LABORATORY APPARATUS,Corporate - HR/Education,NHS LOGISTICS,1017098574,3.95,
Department of Health,Salisbury NHS Foundation Trust,30-Sep-16,DISPOSABLE THEATRE DRAPES WIPES,Surgery,NHS LOGISTICS,1017098574,85.19,
Department of Health,Salisbury NHS Foundation Trust,30-Sep-16,ELECTRICAL EQUIPMENT,Surgery,NHS LOGISTICS,1017098574,3.33,
Department of Health,Salisbury NHS Foundation Trust,30-Sep-16,MEDSURGCONS-OTHER,Surgery,NHS LOGISTICS,1017098574,101.80,
Department of Health,Salisbury NHS Foundation Trust,30-Sep-16,SURGICAL INSTRUMENTS - GENERAL,Surgery,NHS LOGISTICS,1017098574,76.47,
Department of Health,Salisbury NHS Foundation Trust,30-Sep-16,PATIENTS BEDWEAR UNISEX,Clinical Support,NHS LOGISTICS,1017098574,8.00,
Department of Health,Salisbury NHS Foundation Trust,30-Sep-16,DISPOSABLE THEATRE DRAPES WIPES,Clinical Support,NHS LOGISTICS,1017098574,17.08,
Department of Health,Salisbury NHS Foundation Trust,30-Sep-16,DRESSINGS - PRE STERILE,Clinical Support,NHS LOGISTICS,1017098574,0.35,
Department of Health,Salisbury NHS Foundation Trust,30-Sep-16,MED SURG EQUIP REP MAINT CLEANING,Clinical Support,NHS LOGISTICS,1017098574,10.97,
Department of Health,Salisbury NHS Foundation Trust,30-Sep-16,BAGS SACKS - OTHER,Musculo-Skeletal,NHS LOGISTICS,1017098574,2.59,
Department of Health,Salisbury NHS Foundation Trust,30-Sep-16,DRESSINGS - PRE STERILE,Musculo-Skeletal,NHS LOGISTICS,1017098574,15.28,
Department of Health,Salisbury NHS Foundation Trust,30-Sep-16,CLEANING MATERIALS PRODUCTS SUNDRIES,Musculo-Skeletal,NHS LOGISTICS,1017098574,5.45,
Department of Health,Salisbury NHS Foundation Trust,30-Sep-16,DRESSINGS - PRE STERILE,Musculo-Skeletal,NHS LOGISTICS,1017098574,6.18,
Department of Health,Salisbury NHS Foundation Trust,30-Sep-16,TOILETRIES PERSONAL HYGIENE PRODUCTS,Musculo-Skeletal,NHS LOGISTICS,1017098574,4.15,
Department of Health,Salisbury NHS Foundation Trust,30-Sep-16,TISSUES HAND TOWELS & TOILET PAPER,Musculo-Skeletal,NHS LOGISTICS,1017098574,0.70,
Department of Health,Salisbury NHS Foundation Trust,30-Sep-16,TOILETRIES PERSONAL HYGIENE PRODUCTS,Musculo-Skeletal,NHS LOGISTICS,1017098574,4.13,
Department of Health,Salisbury NHS Foundation Trust,30-Sep-16,DISPOSABLE THEATRE DRAPES WIPES,Musculo-Skeletal,NHS LOGISTICS,1017098574,6.48,
Department of Health,Salisbury NHS Foundation Trust,30-Sep-16,OTHER MEDICAL SUPPLIES,Medicine,NHS LOGISTICS,1017098574,110.31,
Department of Health,Salisbury NHS Foundation Trust,30-Sep-16,CLEANING MATERIALS PRODUCTS SUNDRIES,Medicine,NHS LOGISTICS,1017098574,5.45,
Department of Health,Salisbury NHS Foundation Trust,30-Sep-16,TISSUES HAND TOWELS & TOILET PAPER,Medicine,NHS LOGISTICS,1017098574,0.78,
Department of Health,Salisbury NHS Foundation Trust,30-Sep-16,OTHER MEDICAL SUPPLIES,Medicine,NHS LOGISTICS,1017098574,2.97,
Department of Health,Salisbury NHS Foundation Trust,30-Sep-16,DRESSINGS - PRE STERILE,Medicine,NHS LOGISTICS,1017098574,0.70,
Department of Health,Salisbury NHS Foundation Trust,30-Sep-16,TISSUES HAND TOWELS & TOILET PAPER,Surgery,NHS LOGISTICS,1017098574,3.70,
Department of Health,Salisbury NHS Foundation Trust,30-Sep-16,DISPOSABLE THEATRE DRAPES WIPES,Surgery,NHS LOGISTICS,1017098574,22.77,
Department of Health,Salisbury NHS Foundation Trust,30-Sep-16,DRUGS,Surgery,NHS LOGISTICS,1017098574,16.60,
Department of Health,Salisbury NHS Foundation Trust,30-Sep-16,BEVERAGES & AMBIENT FOOD,Surgery,NHS LOGISTICS,1017098574,14.34,
Department of Health,Salisbury NHS Foundation Trust,30-Sep-16,BEVERAGES & AMBIENT FOOD,Surgery,NHS LOGISTICS,1017098574,0.72,
Department of Health,Salisbury NHS Foundation Trust,30-Sep-16,DRUGS,Surgery,NHS LOGISTICS,1017098574,15.53,
Department of Health,Salisbury NHS Foundation Trust,30-Sep-16,BABY TEXTURE MODIFIED FOODS,Clinical Support,NHS LOGISTICS,1017098574,16.66,
Department of Health,Salisbury NHS Foundation Trust,30-Sep-16,BABY TEXTURE MODIFIED FOODS,Clinical Support,NHS LOGISTICS,1017098574,33.32,
Department of Health,Salisbury NHS Foundation Trust,30-Sep-16,LAB REAGENTS-ANALYTICAL KITS,Clinical Support,NHS LOGISTICS,1017098574,144.33,
Department of Health,Salisbury NHS Foundation Trust,30-Sep-16,TISSUES HAND TOWELS & TOILET PAPER,Clinical Support,NHS LOGISTICS,1017098574,21.20,
Department of Health,Salisbury NHS Foundation Trust,30-Sep-16,SERVICES FROM NHS BODIES,Clinical Support,NHS LOGISTICS,1017098574,6.60,
Department of Health,Salisbury NHS Foundation Trust,30-Sep-16,DRESSINGS - PRE STERILE,Clinical Support,NHS LOGISTICS,1017098574,0.35,
Department of Health,Salisbury NHS Foundation Trust,30-Sep-16,LAB EQUIP-LABORATORY APPARATUS,Clinical Support,NHS LOGISTICS,1017098574,7.55,
Department of Health,Salisbury NHS Foundation Trust,30-Sep-16,CLEANING MATERIALS PRODUCTS SUNDRIES,Surgery,NHS LOGISTICS,1017098574,7.05,
Department of Health,Salisbury NHS Foundation Trust,30-Sep-16,TISSUES HAND TOWELS & TOILET PAPER,Medicine,NHS LOGISTICS,1017098574,3.70,
Department of Health,Salisbury NHS Foundation Trust,30-Sep-16,ELECTRICAL EQUIPMENT,Surgery,NHS LOGISTICS,1017098574,5.00,
Department of Health,Salisbury NHS Foundation Trust,30-Sep-16,ELECTRICAL EQUIPMENT,Surgery,NHS LOGISTICS,1017098574,4.00,
Department of Health,Salisbury NHS Foundation Trust,30-Sep-16,TUBES,Medicine,NHS LOGISTICS,1017098574,7.06,
Department of Health,Salisbury NHS Foundation Trust,30-Sep-16,DISPOSABLE THEATRE DRAPES WIPES,Medicine,NHS LOGISTICS,1017098574,106.00,
Department of Health,Salisbury NHS Foundation Trust,30-Sep-16,TISSUES HAND TOWELS & TOILET PAPER,Medicine,NHS LOGISTICS,1017098574,0.39,
Department of Health,Salisbury NHS Foundation Trust,30-Sep-16,TISSUES HAND TOWELS & TOILET PAPER,Musculo-Skeletal,NHS LOGISTICS,1017098574,1.85,
Department of Health,Salisbury NHS Foundation Trust,30-Sep-16,NON DISPOSABLE BED LINEN,Musculo-Skeletal,NHS LOGISTICS,1017098574,12.21,
Department of Health,Salisbury NHS Foundation Trust,30-Sep-16,MEDSURGCONS-OTHER,Musculo-Skeletal,NHS LOGISTICS,1017098574,9.70,
Department of Health,Salisbury NHS Foundation Trust,30-Sep-16,TOILETRIES PERSONAL HYGIENE PRODUCTS,Musculo-Skeletal,NHS LOGISTICS,1017098574,4.13,
Department of Health,Salisbury NHS Foundation Trust,30-Sep-16,DISPOSABLE THEATRE DRAPES WIPES,Musculo-Skeletal,NHS LOGISTICS,1017098574,6.48,
Department of Health,Salisbury NHS Foundation Trust,30-Sep-16,MEDSURGCONS-OTHER,Surgery,NHS LOGISTICS,1017098574,3.99,
Department of Health,Salisbury NHS Foundation Trust,30-Sep-16,DISPOSABLE THEATRE DRAPES WIPES,Surgery,NHS LOGISTICS,1017098574,3.24,
Department of Health,Salisbury NHS Foundation Trust,30-Sep-16,DRESSINGS - PRE STERILE,Musculo-Skeletal,NHS LOGISTICS,1017098574,1.98,
Department of Health,Salisbury NHS Foundation Trust,30-Sep-16,DRESSINGS - PRE STERILE,Musculo-Skeletal,NHS LOGISTICS,1017098574,61.13,
Department of Health,Salisbury NHS Foundation Trust,30-Sep-16,DRESSINGS - PRE STERILE,Musculo-Skeletal,NHS LOGISTICS,1017098574,0.82,
Department of Health,Salisbury NHS Foundation Trust,30-Sep-16,TISSUES HAND TOWELS & TOILET PAPER,Musculo-Skeletal,NHS LOGISTICS,1017098574,1.85,
Department of Health,Salisbury NHS Foundation Trust,30-Sep-16,MEDSURGCONS-OTHER,Musculo-Skeletal,NHS LOGISTICS,1017098574,19.27,
Department of Health,Salisbury NHS Foundation Trust,30-Sep-16,MEDSURGCONS-OTHER,Musculo-Skeletal,NHS LOGISTICS,1017098574,4.85,
Department of Health,Salisbury NHS Foundation Trust,30-Sep-16,MEDSURGCONS-OTHER,Musculo-Skeletal,NHS LOGISTICS,1017098574,5.96,
Department of Health,Salisbury NHS Foundation Trust,30-Sep-16,DISPOSABLE THEATRE DRAPES WIPES,Musculo-Skeletal,NHS LOGISTICS,1017098574,3.24,
Department of Health,Salisbury NHS Foundation Trust,30-Sep-16,DRESSINGS - PRE STERILE,Musculo-Skeletal,NHS LOGISTICS,1017098574,7.64,
Department of Health,Salisbury NHS Foundation Trust,30-Sep-16,DRESSINGS - PRE STERILE,Musculo-Skeletal,NHS LOGISTICS,1017098574,6.16,
Department of Health,Salisbury NHS Foundation Trust,30-Sep-16,TISSUES HAND TOWELS & TOILET PAPER,Musculo-Skeletal,NHS LOGISTICS,1017098574,10.60,
Department of Health,Salisbury NHS Foundation Trust,30-Sep-16,OTHER MEDICAL SUPPLIES,Musculo-Skeletal,NHS LOGISTICS,1017098574,1.42,
Department of Health,Salisbury NHS Foundation Trust,30-Sep-16,BAGS SACKS - OTHER,Musculo-Skeletal,NHS LOGISTICS,1017098574,4.28,
Department of Health,Salisbury NHS Foundation Trust,30-Sep-16,DRESSINGS - PRE STERILE,Musculo-Skeletal,NHS LOGISTICS,1017098574,2.41,
Department of Health,Salisbury NHS Foundation Trust,30-Sep-16,TUBES,Musculo-Skeletal,NHS LOGISTICS,1017098574,6.85,
Department of Health,Salisbury NHS Foundation Trust,30-Sep-16,DRESSINGS - PRE STERILE,Surgery,NHS LOGISTICS,1017098574,316.53,
Department of Health,Salisbury NHS Foundation Trust,30-Sep-16,M & S EQUIPELECTEQUIPINST - OTHER,Surgery,NHS LOGISTICS,1017098574,49.70,
Department of Health,Salisbury NHS Foundation Trust,30-Sep-16,M & S EQUIPELECTEQUIPINST - OTHER,Surgery,NHS LOGISTICS,1017098574,43.48,
Department of Health,Salisbury NHS Foundation Trust,30-Sep-16,M & S EQUIPELECTEQUIPINST - OTHER,Surgery,NHS LOGISTICS,1017098574,318.00,
Department of Health,Salisbury NHS Foundation Trust,30-Sep-16,ELECTRICAL EQUIPMENT,Surgery,NHS LOGISTICS,1017098574,7.87,
Department of Health,Salisbury NHS Foundation Trust,30-Sep-16,PATIENT APPLIANCES,Clinical Support,NHS LOGISTICS,1017098574,2.75,
Department of Health,Salisbury NHS Foundation Trust,30-Sep-16,ANAESTHETIC EQUIPMENT ACCESSORIES,Clinical Support,NHS LOGISTICS,1017098574,85.25,
Department of Health,Salisbury NHS Foundation Trust,30-Sep-16,MEDSURGCONS-OTHER,Clinical Support,NHS LOGISTICS,1017098574,47.67,
Department of Health,Salisbury NHS Foundation Trust,30-Sep-16,MEDSURGCONS-OTHER,Clinical Support,NHS LOGISTICS,1017098574,3.94,
Department of Health,Salisbury NHS Foundation Trust,30-Sep-16,DISPOSABLE THEATRE DRAPES WIPES,Clinical Support,NHS LOGISTICS,1017098574,3.24,
Department of Health,Salisbury NHS Foundation Trust,30-Sep-16,M & S EQUIPELECTEQUIPINST - OTHER,Clinical Support,NHS LOGISTICS,1017098574,114.58,
Department of Health,Salisbury NHS Foundation Trust,30-Sep-16,M & S EQUIPELECTEQUIPINST - OTHER,Clinical Support,NHS LOGISTICS,1017098574,185.94,
Department of Health,Salisbury NHS Foundation Trust,30-Sep-16,TISSUES HAND TOWELS & TOILET PAPER,Clinical Support,NHS LOGISTICS,1017098574,1.85,
Department of Health,Salisbury NHS Foundation Trust,30-Sep-16,TISSUES HAND TOWELS & TOILET PAPER,Clinical Support,NHS LOGISTICS,1017098574,0.78,
Department of Health,Salisbury NHS Foundation Trust,30-Sep-16,DRESSINGS - PRE STERILE,Clinical Support,NHS LOGISTICS,1017098574,6.65,
Department of Health,Salisbury NHS Foundation Trust,30-Sep-16,OTHER MEDICAL SUPPLIES,Clinical Support,NHS LOGISTICS,1017098574,74.97,
Department of Health,Salisbury NHS Foundation Trust,30-Sep-16,TISSUES HAND TOWELS & TOILET PAPER,Clinical Support,NHS LOGISTICS,1017098574,21.20,
Department of Health,Salisbury NHS Foundation Trust,30-Sep-16,OTHER MEDICAL SUPPLIES,Clinical Support,NHS LOGISTICS,1017098574,1.42,
Department of Health,Salisbury NHS Foundation Trust,30-Sep-16,BEVERAGES & AMBIENT FOOD,Surgery,NHS LOGISTICS,1017098574,14.34,
Department of Health,Salisbury NHS Foundation Trust,30-Sep-16,BEVERAGES & AMBIENT FOOD,Surgery,NHS LOGISTICS,1017098574,1.44,
Department of Health,Salisbury NHS Foundation Trust,30-Sep-16,BEVERAGES & AMBIENT FOOD,Surgery,NHS LOGISTICS,1017098574,2.78,
Department of Health,Salisbury NHS Foundation Trust,30-Sep-16,OTHER MEDICAL SUPPLIES,Surgery,NHS LOGISTICS,1017098574,24.53,
Department of Health,Salisbury NHS Foundation Trust,30-Sep-16,DRESSINGS - PRE STERILE,Medicine,NHS LOGISTICS,1017098574,1.23,
Department of Health,Salisbury NHS Foundation Trust,30-Sep-16,PATIENT APPLIANCES,Medicine,NHS LOGISTICS,1017098574,4.12,
Department of Health,Salisbury NHS Foundation Trust,30-Sep-16,PATIENT APPLIANCES,Medicine,NHS LOGISTICS,1017098574,8.23,
Department of Health,Salisbury NHS Foundation Trust,30-Sep-16,PATIENT APPLIANCES,Medicine,NHS LOGISTICS,1017098574,8.23,
Department of Health,Salisbury NHS Foundation Trust,30-Sep-16,PATIENT APPLIANCES,Medicine,NHS LOGISTICS,1017098574,4.12,
Department of Health,Salisbury NHS Foundation Trust,30-Sep-16,MEDSURGCONS-OTHER,Medicine,NHS LOGISTICS,1017098574,59.78,
Department of Health,Salisbury NHS Foundation Trust,30-Sep-16,LAB EQUIP-LABORATORY APPARATUS,Medicine,NHS LOGISTICS,1017098574,7.90,
Department of Health,Salisbury NHS Foundation Trust,30-Sep-16,DISPOSABLE THEATRE DRAPES WIPES,Medicine,NHS LOGISTICS,1017098574,6.48,
Department of Health,Salisbury NHS Foundation Trust,30-Sep-16,ELECTRICAL EQUIPMENT,Medicine,NHS LOGISTICS,1017098574,9.67,
Department of Health,Salisbury NHS Foundation Trust,30-Sep-16,TISSUES HAND TOWELS & TOILET PAPER,Medicine,NHS LOGISTICS,1017098574,3.70,
Department of Health,Salisbury NHS Foundation Trust,30-Sep-16,TISSUES HAND TOWELS & TOILET PAPER,Medicine,NHS LOGISTICS,1017098574,21.20,
Department of Health,Salisbury NHS Foundation Trust,30-Sep-16,SURGICAL INSTRUMENTS - DISPOSABLE,Surgery,NHS LOGISTICS,1017098574,3.60,
Department of Health,Salisbury NHS Foundation Trust,30-Sep-16,COOKING & KITCHEN UTENSILS,Surgery,NHS LOGISTICS,1017098574,17.01,
Department of Health,Salisbury NHS Foundation Trust,30-Sep-16,DISPOSABLE THEATRE DRAPES WIPES,Surgery,NHS LOGISTICS,1017098574,33.35,
Department of Health,Salisbury NHS Foundation Trust,30-Sep-16,SURGICAL INSTRUMENTS - GENERAL,Surgery,NHS LOGISTICS,1017098574,9.00,
Department of Health,Salisbury NHS Foundation Trust,30-Sep-16,MEDSURGCONS-OTHER,Surgery,NHS LOGISTICS,1017098574,10.76,
Department of Health,Salisbury NHS Foundation Trust,30-Sep-16,MEDSURGCONS-OTHER,Surgery,NHS LOGISTICS,1017098574,10.76,
Department of Health,Salisbury NHS Foundation Trust,30-Sep-16,OTHER MEDICAL SUPPLIES,Surgery,NHS LOGISTICS,1017098574,505.72,
Department of Health,Salisbury NHS Foundation Trust,30-Sep-16,DRESSINGS - PRE STERILE,Surgery,NHS LOGISTICS,1017098574,14.43,
Department of Health,Salisbury NHS Foundation Trust,30-Sep-16,DRESSINGS - PRE STERILE,Medicine,NHS LOGISTICS,1017098574,15.28,
Department of Health,Salisbury NHS Foundation Trust,30-Sep-16,TUBES,Medicine,NHS LOGISTICS,1017098574,13.70,
Department of Health,Salisbury NHS Foundation Trust,30-Sep-16,OTHER MEDICAL SUPPLIES,Medicine,NHS LOGISTICS,1017098574,5.58,
Department of Health,Salisbury NHS Foundation Trust,30-Sep-16,MEDSURGCONS-OTHER,Medicine,NHS LOGISTICS,1017098574,59.78,
Department of Health,Salisbury NHS Foundation Trust,30-Sep-16,MEDSURGCONS-OTHER,Medicine,NHS LOGISTICS,1017098574,3.99,
Department of Health,Salisbury NHS Foundation Trust,30-Sep-16,DISPOSABLE THEATRE DRAPES WIPES,Medicine,NHS LOGISTICS,1017098574,6.48,
Department of Health,Salisbury NHS Foundation Trust,30-Sep-16,SURGICAL INSTRUMENTS - GENERAL,Medicine,NHS LOGISTICS,1017098574,9.83,
Department of Health,Salisbury NHS Foundation Trust,30-Sep-16,TISSUES HAND TOWELS & TOILET PAPER,Medicine,NHS LOGISTICS,1017098574,3.15,
Department of Health,Salisbury NHS Foundation Trust,30-Sep-16,DISPOSABLE THEATRE DRAPES WIPES,Medicine,NHS LOGISTICS,1017098574,6.48,
Department of Health,Salisbury NHS Foundation Trust,30-Sep-16,DRESSINGS - PRE STERILE,Surgery,NHS LOGISTICS,1017098574,7.64,
Department of Health,Salisbury NHS Foundation Trust,30-Sep-16,MEDSURGCONS-OTHER,Surgery,NHS LOGISTICS,1017098574,5.96,
Department of Health,Salisbury NHS Foundation Trust,30-Sep-16,TISSUES HAND TOWELS & TOILET PAPER,Surgery,NHS LOGISTICS,1017098574,0.70,
Department of Health,Salisbury NHS Foundation Trust,30-Sep-16,DISPOSABLE THEATRE DRAPES WIPES,Surgery,NHS LOGISTICS,1017098574,6.48,
Department of Health,Salisbury NHS Foundation Trust,30-Sep-16,OTHER MEDICAL SUPPLIES,Surgery,NHS LOGISTICS,1017098574,25.50,
Department of Health,Salisbury NHS Foundation Trust,30-Sep-16,OTHER MEDICAL SUPPLIES,Surgery,NHS LOGISTICS,1017098574,25.50,
Department of Health,Salisbury NHS Foundation Trust,30-Sep-16,DISPOSABLE THEATRE DRAPES WIPES,Surgery,NHS LOGISTICS,1017098574,85.80,
Department of Health,Salisbury NHS Foundation Trust,30-Sep-16,EGGS MILK OTHER DAIRY PRODUCTS,Facilities,NHS LOGISTICS,1017098574,129.16,
Department of Health,Salisbury NHS Foundation Trust,30-Sep-16,FRUIT & VEGETABLES,Facilities,NHS LOGISTICS,1017098574,20.08,
Department of Health,Salisbury NHS Foundation Trust,30-Sep-16,BEVERAGES & AMBIENT FOOD,Facilities,NHS LOGISTICS,1017098574,33.42,
Department of Health,Salisbury NHS Foundation Trust,30-Sep-16,BEVERAGES & AMBIENT FOOD,Facilities,NHS LOGISTICS,1017098574,16.38,
Department of Health,Salisbury NHS Foundation Trust,30-Sep-16,BEVERAGES & AMBIENT FOOD,Facilities,NHS LOGISTICS,1017098574,9.60,
Department of Health,Salisbury NHS Foundation Trust,30-Sep-16,BEVERAGES & AMBIENT FOOD,Facilities,NHS LOGISTICS,1017098574,7.50,
Department of Health,Salisbury NHS Foundation Trust,30-Sep-16,BEVERAGES & AMBIENT FOOD,Facilities,NHS LOGISTICS,1017098574,27.56,
Department of Health,Salisbury NHS Foundation Trust,30-Sep-16,BEVERAGES & AMBIENT FOOD,Facilities,NHS LOGISTICS,1017098574,12.78,
Department of Health,Salisbury NHS Foundation Trust,30-Sep-16,BEVERAGES & AMBIENT FOOD,Facilities,NHS LOGISTICS,1017098574,4.98,
Department of Health,Salisbury NHS Foundation Trust,30-Sep-16,BEVERAGES & AMBIENT FOOD,Facilities,NHS LOGISTICS,1017098574,7.64,
Department of Health,Salisbury NHS Foundation Trust,30-Sep-16,BEVERAGES & AMBIENT FOOD,Facilities,NHS LOGISTICS,1017098574,6.32,
Department of Health,Salisbury NHS Foundation Trust,30-Sep-16,BEVERAGES & AMBIENT FOOD,Facilities,NHS LOGISTICS,1017098574,8.66,
Department of Health,Salisbury NHS Foundation Trust,30-Sep-16,FLAVOURINGS HERBS SPICES,Facilities,NHS LOGISTICS,1017098574,5.38,
Department of Health,Salisbury NHS Foundation Trust,30-Sep-16,BEVERAGES & AMBIENT FOOD,Facilities,NHS LOGISTICS,1017098574,15.64,
Department of Health,Salisbury NHS Foundation Trust,30-Sep-16,BEVERAGES & AMBIENT FOOD,Facilities,NHS LOGISTICS,1017098574,18.48,
Department of Health,Salisbury NHS Foundation Trust,30-Sep-16,LIQUID REFRESHMENTS,Facilities,NHS LOGISTICS,1017098574,3.91,
Department of Health,Salisbury NHS Foundation Trust,30-Sep-16,BEVERAGES & AMBIENT FOOD,Facilities,NHS LOGISTICS,1017098574,9.84,
Department of Health,Salisbury NHS Foundation Trust,30-Sep-16,EGGS MILK OTHER DAIRY PRODUCTS,Facilities,NHS LOGISTICS,1017098574,46.24,
Department of Health,Salisbury NHS Foundation Trust,30-Sep-16,FLAVOURINGS HERBS SPICES,Facilities,NHS LOGISTICS,1017098574,22.96,
Department of Health,Salisbury NHS Foundation Trust,30-Sep-16,FRUIT & VEGETABLES,Facilities,NHS LOGISTICS,1017098574,18.96,
Department of Health,Salisbury NHS Foundation Trust,30-Sep-16,BEVERAGES & AMBIENT FOOD,Facilities,NHS LOGISTICS,1017098574,56.64,
Department of Health,Salisbury NHS Foundation Trust,30-Sep-16,BEVERAGES & AMBIENT FOOD,Facilities,NHS LOGISTICS,1017098574,10.74,
Department of Health,Salisbury NHS Foundation Trust,30-Sep-16,FRUIT & VEGETABLES,Facilities,NHS LOGISTICS,1017098574,53.10,
Department of Health,Salisbury NHS Foundation Trust,30-Sep-16,FRUIT & VEGETABLES,Facilities,NHS LOGISTICS,1017098574,37.44,
Department of Health,Salisbury NHS Foundation Trust,30-Sep-16,FRUIT & VEGETABLES,Facilities,NHS LOGISTICS,1017098574,16.56,
Department of Health,Salisbury NHS Foundation Trust,30-Sep-16,FRUIT & VEGETABLES,Facilities,NHS LOGISTICS,1017098574,5.00,
Department of Health,Salisbury NHS Foundation Trust,30-Sep-16,FRUIT & VEGETABLES,Facilities,NHS LOGISTICS,1017098574,4.92,
Department of Health,Salisbury NHS Foundation Trust,30-Sep-16,LIQUID REFRESHMENTS,Facilities,NHS LOGISTICS,1017098574,4.66,
Department of Health,Salisbury NHS Foundation Trust,30-Sep-16,LIQUID REFRESHMENTS,Facilities,NHS LOGISTICS,1017098574,17.35,
Department of Health,Salisbury NHS Foundation Trust,30-Sep-16,LIQUID REFRESHMENTS,Facilities,NHS LOGISTICS,1017098574,13.25,
Department of Health,Salisbury NHS Foundation Trust,30-Sep-16,LIQUID REFRESHMENTS,Facilities,NHS LOGISTICS,1017098574,13.25,
Department of Health,Salisbury NHS Foundation Trust,30-Sep-16,BEVERAGES & AMBIENT FOOD,Facilities,NHS LOGISTICS,1017098574,28.26,
Department of Health,Salisbury NHS Foundation Trust,30-Sep-16,BEVERAGES & AMBIENT FOOD,Facilities,NHS LOGISTICS,1017098574,50.04,
Department of Health,Salisbury NHS Foundation Trust,30-Sep-16,BEVERAGES & AMBIENT FOOD,Facilities,NHS LOGISTICS,1017098574,26.61,
Department of Health,Salisbury NHS Foundation Trust,30-Sep-16,BEVERAGES & AMBIENT FOOD,Facilities,NHS LOGISTICS,1017098574,24.50,
Department of Health,Salisbury NHS Foundation Trust,30-Sep-16,BEVERAGES & AMBIENT FOOD,Facilities,NHS LOGISTICS,1017098574,9.45,
Department of Health,Salisbury NHS Foundation Trust,30-Sep-16,BEVERAGES & AMBIENT FOOD,Facilities,NHS LOGISTICS,1017098574,32.61,
Department of Health,Salisbury NHS Foundation Trust,30-Sep-16,BEVERAGES & AMBIENT FOOD,Facilities,NHS LOGISTICS,1017098574,24.60,
Department of Health,Salisbury NHS Foundation Trust,30-Sep-16,BEVERAGES & AMBIENT FOOD,Facilities,NHS LOGISTICS,1017098574,11.44,
Department of Health,Salisbury NHS Foundation Trust,30-Sep-16,FLAVOURINGS HERBS SPICES,Facilities,NHS LOGISTICS,1017098574,1.48,
Department of Health,Salisbury NHS Foundation Trust,30-Sep-16,BEVERAGES & AMBIENT FOOD,Facilities,NHS LOGISTICS,1017098574,5.94,
Department of Health,Salisbury NHS Foundation Trust,30-Sep-16,BEVERAGES & AMBIENT FOOD,Facilities,NHS LOGISTICS,1017098574,1.89,
Department of Health,Salisbury NHS Foundation Trust,30-Sep-16,BEVERAGES & AMBIENT FOOD,Facilities,NHS LOGISTICS,1017098574,5.58,
Department of Health,Salisbury NHS Foundation Trust,30-Sep-16,FLAVOURINGS HERBS SPICES,Facilities,NHS LOGISTICS,1017098574,6.15,
Department of Health,Salisbury NHS Foundation Trust,30-Sep-16,BEVERAGES & AMBIENT FOOD,Facilities,NHS LOGISTICS,1017098574,12.24,
Department of Health,Salisbury NHS Foundation Trust,30-Sep-16,BEVERAGES & AMBIENT FOOD,Facilities,NHS LOGISTICS,1017098574,9.27,
Department of Health,Salisbury NHS Foundation Trust,30-Sep-16,LIQUID REFRESHMENTS,Facilities,NHS LOGISTICS,1017098574,115.60,
Department of Health,Salisbury NHS Foundation Trust,30-Sep-16,LIQUID REFRESHMENTS,Facilities,NHS LOGISTICS,1017098574,6.58,
Department of Health,Salisbury NHS Foundation Trust,30-Sep-16,LIQUID REFRESHMENTS,Facilities,NHS LOGISTICS,1017098574,9.30,
Department of Health,Salisbury NHS Foundation Trust,30-Sep-16,LIQUID REFRESHMENTS,Facilities,NHS LOGISTICS,1017098574,2.53,
Department of Health,Salisbury NHS Foundation Trust,30-Sep-16,LIQUID REFRESHMENTS,Facilities,NHS LOGISTICS,1017098574,5.82,
Department of Health,Salisbury NHS Foundation Trust,30-Sep-16,BEVERAGES & AMBIENT FOOD,Facilities,NHS LOGISTICS,1017098574,15.20,
Department of Health,Salisbury NHS Foundation Trust,30-Sep-16,BEVERAGES & AMBIENT FOOD,Facilities,NHS LOGISTICS,1017098574,70.32,
Department of Health,Salisbury NHS Foundation Trust,30-Sep-16,FRUIT & VEGETABLES,Facilities,NHS LOGISTICS,1017098574,23.52,
Department of Health,Salisbury NHS Foundation Trust,30-Sep-16,FRUIT & VEGETABLES,Facilities,NHS LOGISTICS,1017098574,11.52,
Department of Health,Salisbury NHS Foundation Trust,30-Sep-16,FRUIT & VEGETABLES,Facilities,NHS LOGISTICS,1017098574,11.16,
Department of Health,Salisbury NHS Foundation Trust,30-Sep-16,BEVERAGES & AMBIENT FOOD,Facilities,NHS LOGISTICS,1017098574,5.42,
Department of Health,Salisbury NHS Foundation Trust,30-Sep-16,BEVERAGES & AMBIENT FOOD,Facilities,NHS LOGISTICS,1017098574,12.12,
Department of Health,Salisbury NHS Foundation Trust,30-Sep-16,BEVERAGES & AMBIENT FOOD,Facilities,NHS LOGISTICS,1017098574,8.47,
Department of Health,Salisbury NHS Foundation Trust,30-Sep-16,PAPER ITEMS GENERAL STATIONERY SUNDRIES,Facilities,NHS LOGISTICS,1017098574,13.00,
Department of Health,Salisbury NHS Foundation Trust,30-Sep-16,M & S EQUIPELECTEQUIPINST - OTHER,Clinical Support,NHS LOGISTICS,1017098574,83.33,
Department of Health,Salisbury NHS Foundation Trust,30-Sep-16,BAGS SACKS - OTHER,Facilities,NHS LOGISTICS,1017098574,117.60,
Department of Health,Salisbury NHS Foundation Trust,30-Sep-16,EGGS MILK OTHER DAIRY PRODUCTS,Facilities,NHS LOGISTICS,1017098574,226.03,
Department of Health,Salisbury NHS Foundation Trust,30-Sep-16,FRUIT & VEGETABLES,Facilities,NHS LOGISTICS,1017098574,40.16,
Department of Health,Salisbury NHS Foundation Trust,30-Sep-16,BEVERAGES & AMBIENT FOOD,Facilities,NHS LOGISTICS,1017098574,33.42,
Department of Health,Salisbury NHS Foundation Trust,30-Sep-16,BEVERAGES & AMBIENT FOOD,Facilities,NHS LOGISTICS,1017098574,49.14,
Department of Health,Salisbury NHS Foundation Trust,30-Sep-16,BEVERAGES & AMBIENT FOOD,Facilities,NHS LOGISTICS,1017098574,19.20,
Department of Health,Salisbury NHS Foundation Trust,30-Sep-16,BEVERAGES & AMBIENT FOOD,Facilities,NHS LOGISTICS,1017098574,7.50,
Department of Health,Salisbury NHS Foundation Trust,30-Sep-16,BEVERAGES & AMBIENT FOOD,Facilities,NHS LOGISTICS,1017098574,13.96,
Department of Health,Salisbury NHS Foundation Trust,30-Sep-16,BEVERAGES & AMBIENT FOOD,Facilities,NHS LOGISTICS,1017098574,27.56,
Department of Health,Salisbury NHS Foundation Trust,30-Sep-16,BEVERAGES & AMBIENT FOOD,Facilities,NHS LOGISTICS,1017098574,19.17,
Department of Health,Salisbury NHS Foundation Trust,30-Sep-16,BEVERAGES & AMBIENT FOOD,Facilities,NHS LOGISTICS,1017098574,8.84,
Department of Health,Salisbury NHS Foundation Trust,30-Sep-16,BEVERAGES & AMBIENT FOOD,Facilities,NHS LOGISTICS,1017098574,2.55,
Department of Health,Salisbury NHS Foundation Trust,30-Sep-16,BEVERAGES & AMBIENT FOOD,Facilities,NHS LOGISTICS,1017098574,18.54,
Department of Health,Salisbury NHS Foundation Trust,30-Sep-16,BEVERAGES & AMBIENT FOOD,Facilities,NHS LOGISTICS,1017098574,3.18,
Department of Health,Salisbury NHS Foundation Trust,30-Sep-16,BEVERAGES & AMBIENT FOOD,Facilities,NHS LOGISTICS,1017098574,16.92,
Department of Health,Salisbury NHS Foundation Trust,30-Sep-16,COOKING & KITCHEN UTENSILS,Facilities,NHS LOGISTICS,1017098574,48.33,
Department of Health,Salisbury NHS Foundation Trust,30-Sep-16,BEVERAGES & AMBIENT FOOD,Facilities,NHS LOGISTICS,1017098574,31.28,
Department of Health,Salisbury NHS Foundation Trust,30-Sep-16,BEVERAGES & AMBIENT FOOD,Facilities,NHS LOGISTICS,1017098574,18.48,
Department of Health,Salisbury NHS Foundation Trust,30-Sep-16,LIQUID REFRESHMENTS,Facilities,NHS LOGISTICS,1017098574,3.91,
Department of Health,Salisbury NHS Foundation Trust,30-Sep-16,BEVERAGES & AMBIENT FOOD,Facilities,NHS LOGISTICS,1017098574,9.84,
Department of Health,Salisbury NHS Foundation Trust,30-Sep-16,FLAVOURINGS HERBS SPICES,Facilities,NHS LOGISTICS,1017098574,11.76,
Department of Health,Salisbury NHS Foundation Trust,30-Sep-16,FLAVOURINGS HERBS SPICES,Facilities,NHS LOGISTICS,1017098574,22.96,
Department of Health,Salisbury NHS Foundation Trust,30-Sep-16,BEVERAGES & AMBIENT FOOD,Facilities,NHS LOGISTICS,1017098574,11.28,
Department of Health,Salisbury NHS Foundation Trust,30-Sep-16,MEAT GAME POULTRY FISH,Facilities,NHS LOGISTICS,1017098574,33.60,
Department of Health,Salisbury NHS Foundation Trust,30-Sep-16,FRUIT & VEGETABLES,Facilities,NHS LOGISTICS,1017098574,23.70,
Department of Health,Salisbury NHS Foundation Trust,30-Sep-16,BEVERAGES & AMBIENT FOOD,Facilities,NHS LOGISTICS,1017098574,132.16,
Department of Health,Salisbury NHS Foundation Trust,30-Sep-16,BEVERAGES & AMBIENT FOOD,Facilities,NHS LOGISTICS,1017098574,32.22,
Department of Health,Salisbury NHS Foundation Trust,30-Sep-16,FRUIT & VEGETABLES,Facilities,NHS LOGISTICS,1017098574,103.20,
Department of Health,Salisbury NHS Foundation Trust,30-Sep-16,FRUIT & VEGETABLES,Facilities,NHS LOGISTICS,1017098574,10.74,
Department of Health,Salisbury NHS Foundation Trust,30-Sep-16,FRUIT & VEGETABLES,Facilities,NHS LOGISTICS,1017098574,26.64,
Department of Health,Salisbury NHS Foundation Trust,30-Sep-16,FRUIT & VEGETABLES,Facilities,NHS LOGISTICS,1017098574,9.90,
Department of Health,Salisbury NHS Foundation Trust,30-Sep-16,FRUIT & VEGETABLES,Facilities,NHS LOGISTICS,1017098574,62.58,
Department of Health,Salisbury NHS Foundation Trust,30-Sep-16,FRUIT & VEGETABLES,Facilities,NHS LOGISTICS,1017098574,33.12,
Department of Health,Salisbury NHS Foundation Trust,30-Sep-16,FRUIT & VEGETABLES,Facilities,NHS LOGISTICS,1017098574,7.50,
Department of Health,Salisbury NHS Foundation Trust,30-Sep-16,FRUIT & VEGETABLES,Facilities,NHS LOGISTICS,1017098574,34.44,
Department of Health,Salisbury NHS Foundation Trust,30-Sep-16,FRUIT & VEGETABLES,Facilities,NHS LOGISTICS,1017098574,4.92,
Department of Health,Salisbury NHS Foundation Trust,30-Sep-16,LIQUID REFRESHMENTS,Facilities,NHS LOGISTICS,1017098574,9.98,
Department of Health,Salisbury NHS Foundation Trust,30-Sep-16,LIQUID REFRESHMENTS,Facilities,NHS LOGISTICS,1017098574,4.66,
Department of Health,Salisbury NHS Foundation Trust,30-Sep-16,BEVERAGES & AMBIENT FOOD,Facilities,NHS LOGISTICS,1017098574,6.72,
Department of Health,Salisbury NHS Foundation Trust,30-Sep-16,LIQUID REFRESHMENTS,Facilities,NHS LOGISTICS,1017098574,10.88,
Department of Health,Salisbury NHS Foundation Trust,30-Sep-16,LIQUID REFRESHMENTS,Facilities,NHS LOGISTICS,1017098574,17.35,
Department of Health,Salisbury NHS Foundation Trust,30-Sep-16,LIQUID REFRESHMENTS,Facilities,NHS LOGISTICS,1017098574,24.63,
Department of Health,Salisbury NHS Foundation Trust,30-Sep-16,LIQUID REFRESHMENTS,Facilities,NHS LOGISTICS,1017098574,18.33,
Department of Health,Salisbury NHS Foundation Trust,30-Sep-16,LIQUID REFRESHMENTS,Facilities,NHS LOGISTICS,1017098574,26.33,
Department of Health,Salisbury NHS Foundation Trust,30-Sep-16,LIQUID REFRESHMENTS,Facilities,NHS LOGISTICS,1017098574,13.25,
Department of Health,Salisbury NHS Foundation Trust,30-Sep-16,LIQUID REFRESHMENTS,Facilities,NHS LOGISTICS,1017098574,13.25,
Department of Health,Salisbury NHS Foundation Trust,30-Sep-16,BEVERAGES & AMBIENT FOOD,Facilities,NHS LOGISTICS,1017098574,47.10,
Department of Health,Salisbury NHS Foundation Trust,30-Sep-16,BEVERAGES & AMBIENT FOOD,Facilities,NHS LOGISTICS,1017098574,100.08,
Department of Health,Salisbury NHS Foundation Trust,30-Sep-16,COOKING & KITCHEN UTENSILS,Facilities,NHS LOGISTICS,1017098574,19.73,
Department of Health,Salisbury NHS Foundation Trust,30-Sep-16,COOKING & KITCHEN UTENSILS,Facilities,NHS LOGISTICS,1017098574,16.80,
Department of Health,Salisbury NHS Foundation Trust,30-Sep-16,BEVERAGES & AMBIENT FOOD,Facilities,NHS LOGISTICS,1017098574,61.25,
Department of Health,Salisbury NHS Foundation Trust,30-Sep-16,BEVERAGES & AMBIENT FOOD,Facilities,NHS LOGISTICS,1017098574,9.45,
Department of Health,Salisbury NHS Foundation Trust,30-Sep-16,BEVERAGES & AMBIENT FOOD,Facilities,NHS LOGISTICS,1017098574,21.74,
Department of Health,Salisbury NHS Foundation Trust,30-Sep-16,BEVERAGES & AMBIENT FOOD,Facilities,NHS LOGISTICS,1017098574,49.20,
Department of Health,Salisbury NHS Foundation Trust,30-Sep-16,BEVERAGES & AMBIENT FOOD,Facilities,NHS LOGISTICS,1017098574,18.00,
Department of Health,Salisbury NHS Foundation Trust,30-Sep-16,BEVERAGES & AMBIENT FOOD,Facilities,NHS LOGISTICS,1017098574,32.88,
Department of Health,Salisbury NHS Foundation Trust,30-Sep-16,BEVERAGES & AMBIENT FOOD,Facilities,NHS LOGISTICS,1017098574,14.04,
Department of Health,Salisbury NHS Foundation Trust,30-Sep-16,BEVERAGES & AMBIENT FOOD,Facilities,NHS LOGISTICS,1017098574,6.80,
Department of Health,Salisbury NHS Foundation Trust,30-Sep-16,FLAVOURINGS HERBS SPICES,Facilities,NHS LOGISTICS,1017098574,4.44,
Department of Health,Salisbury NHS Foundation Trust,30-Sep-16,BEVERAGES & AMBIENT FOOD,Facilities,NHS LOGISTICS,1017098574,8.72,
Department of Health,Salisbury NHS Foundation Trust,30-Sep-16,BEVERAGES & AMBIENT FOOD,Facilities,NHS LOGISTICS,1017098574,8.91,
Department of Health,Salisbury NHS Foundation Trust,30-Sep-16,BEVERAGES & AMBIENT FOOD,Facilities,NHS LOGISTICS,1017098574,6.56,
Department of Health,Salisbury NHS Foundation Trust,30-Sep-16,BEVERAGES & AMBIENT FOOD,Facilities,NHS LOGISTICS,1017098574,14.56,
Department of Health,Salisbury NHS Foundation Trust,30-Sep-16,FRUIT & VEGETABLES,Facilities,NHS LOGISTICS,1017098574,1.68,
Department of Health,Salisbury NHS Foundation Trust,30-Sep-16,FLAVOURINGS HERBS SPICES,Facilities,NHS LOGISTICS,1017098574,12.30,
Department of Health,Salisbury NHS Foundation Trust,30-Sep-16,BEVERAGES & AMBIENT FOOD,Facilities,NHS LOGISTICS,1017098574,4.58,
Department of Health,Salisbury NHS Foundation Trust,30-Sep-16,BEVERAGES & AMBIENT FOOD,Facilities,NHS LOGISTICS,1017098574,12.24,
Department of Health,Salisbury NHS Foundation Trust,30-Sep-16,BEVERAGES & AMBIENT FOOD,Facilities,NHS LOGISTICS,1017098574,9.27,
Department of Health,Salisbury NHS Foundation Trust,30-Sep-16,LIQUID REFRESHMENTS,Facilities,NHS LOGISTICS,1017098574,217.60,
Department of Health,Salisbury NHS Foundation Trust,30-Sep-16,BEVERAGES & AMBIENT FOOD,Facilities,NHS LOGISTICS,1017098574,25.68,
Department of Health,Salisbury NHS Foundation Trust,30-Sep-16,LIQUID REFRESHMENTS,Facilities,NHS LOGISTICS,1017098574,13.17,
Department of Health,Salisbury NHS Foundation Trust,30-Sep-16,LIQUID REFRESHMENTS,Facilities,NHS LOGISTICS,1017098574,15.50,
Department of Health,Salisbury NHS Foundation Trust,30-Sep-16,LIQUID REFRESHMENTS,Facilities,NHS LOGISTICS,1017098574,2.53,
Department of Health,Salisbury NHS Foundation Trust,30-Sep-16,LIQUID REFRESHMENTS,Facilities,NHS LOGISTICS,1017098574,2.53,
Department of Health,Salisbury NHS Foundation Trust,30-Sep-16,LIQUID REFRESHMENTS,Facilities,NHS LOGISTICS,1017098574,5.82,
Department of Health,Salisbury NHS Foundation Trust,30-Sep-16,BEVERAGES & AMBIENT FOOD,Facilities,NHS LOGISTICS,1017098574,158.22,
Department of Health,Salisbury NHS Foundation Trust,30-Sep-16,BEVERAGES & AMBIENT FOOD,Facilities,NHS LOGISTICS,1017098574,94.00,
Department of Health,Salisbury NHS Foundation Trust,30-Sep-16,COOKING & KITCHEN UTENSILS,Facilities,NHS LOGISTICS,1017098574,19.50,
Department of Health,Salisbury NHS Foundation Trust,30-Sep-16,TISSUES HAND TOWELS & TOILET PAPER,Facilities,NHS LOGISTICS,1017098574,10.60,
Department of Health,Salisbury NHS Foundation Trust,30-Sep-16,FRUIT & VEGETABLES,Facilities,NHS LOGISTICS,1017098574,7.32,
Department of Health,Salisbury NHS Foundation Trust,30-Sep-16,FRUIT & VEGETABLES,Facilities,NHS LOGISTICS,1017098574,23.52,
Department of Health,Salisbury NHS Foundation Trust,30-Sep-16,FRUIT & VEGETABLES,Facilities,NHS LOGISTICS,1017098574,23.04,
Department of Health,Salisbury NHS Foundation Trust,30-Sep-16,FRUIT & VEGETABLES,Facilities,NHS LOGISTICS,1017098574,43.08,
Department of Health,Salisbury NHS Foundation Trust,30-Sep-16,FRUIT & VEGETABLES,Facilities,NHS LOGISTICS,1017098574,11.16,
Department of Health,Salisbury NHS Foundation Trust,30-Sep-16,BEVERAGES & AMBIENT FOOD,Facilities,NHS LOGISTICS,1017098574,5.42,
Department of Health,Salisbury NHS Foundation Trust,30-Sep-16,BEVERAGES & AMBIENT FOOD,Facilities,NHS LOGISTICS,1017098574,12.12,
Department of Health,Salisbury NHS Foundation Trust,30-Sep-16,BEVERAGES & AMBIENT FOOD,Facilities,NHS LOGISTICS,1017098574,8.47,
Department of Health,Salisbury NHS Foundation Trust,30-Sep-16,STATIONERY SUNDRIES,Facilities,NHS LOGISTICS,1017098574,1.08,
Department of Health,Salisbury NHS Foundation Trust,30-Sep-16,MEDSURGCONS-OTHER,Surgery,NHS LOGISTICS,1017098574,25.15,
Department of Health,Salisbury NHS Foundation Trust,30-Sep-16,BAGS SACKS - PLASTIC BAGS SACKS,Facilities,NHS LOGISTICS,1017098574,177.20,
Department of Health,Salisbury NHS Foundation Trust,30-Sep-16,MEDSURGCONS-OTHER,Clinical Support,NHS LOGISTICS,1017098574,22.83,
Department of Health,Salisbury NHS Foundation Trust,30-Sep-16,M & S EQUIPELECTEQUIPINST - OTHER,Medicine,NHS LOGISTICS,1017098574,21.05,
Department of Health,Salisbury NHS Foundation Trust,30-Sep-16,MEDSURGCONS-OTHER,Surgery,NHS LOGISTICS,1017098574,74.29,
Department of Health,Salisbury NHS Foundation Trust,30-Sep-16,MEDSURGCONS-OTHER,Surgery,NHS LOGISTICS,1017098574,74.29,
Department of Health,Salisbury NHS Foundation Trust,30-Sep-16,SERVICES FROM NHS BODIES,Clinical Support,NHS LOGISTICS,1017098574,77.60,
Department of Health,Salisbury NHS Foundation Trust,30-Sep-16,OTHER MEDICAL SUPPLIES,Surgery,NHS LOGISTICS,1017098574,25.96,
Department of Health,Salisbury NHS Foundation Trust,30-Sep-16,OTHER MEDICAL SUPPLIES,Surgery,NHS LOGISTICS,1017098574,12.90,
Department of Health,Salisbury NHS Foundation Trust,30-Sep-16,OTHER MEDICAL SUPPLIES,Surgery,NHS LOGISTICS,1017098574,64.52,
Department of Health,Salisbury NHS Foundation Trust,30-Sep-16,PATIENT APPLIANCES,Surgery,NHS LOGISTICS,1017098574,17.12,
Department of Health,Salisbury NHS Foundation Trust,30-Sep-16,PATIENT APPLIANCES,Surgery,NHS LOGISTICS,1017098574,17.12,
Department of Health,Salisbury NHS Foundation Trust,30-Sep-16,PATIENT APPLIANCES,Surgery,NHS LOGISTICS,1017098574,4.28,
Department of Health,Salisbury NHS Foundation Trust,30-Sep-16,SERVICES FROM NHS BODIES,Clinical Support,NHS LOGISTICS,1017098574,6.59,
Department of Health,Salisbury NHS Foundation Trust,30-Sep-16,TISSUES HAND TOWELS & TOILET PAPER,Clinical Support,NHS LOGISTICS,1017098574,0.16,
Department of Health,Salisbury NHS Foundation Trust,30-Sep-16,MEDSURGCONS-OTHER,Clinical Support,NHS LOGISTICS,1017098574,9.13,
Department of Health,Salisbury NHS Foundation Trust,30-Sep-16,MEDSURGCONS-OTHER,Clinical Support,NHS LOGISTICS,1017098574,9.13,
Department of Health,Salisbury NHS Foundation Trust,30-Sep-16,MEDSURGCONS-OTHER,Clinical Support,NHS LOGISTICS,1017098574,2.77,
Department of Health,Salisbury NHS Foundation Trust,30-Sep-16,IN HOUSE - BUILDING,Corporate - ETS,NHS LOGISTICS,1017098574,6.98,
Department of Health,Salisbury NHS Foundation Trust,30-Sep-16,LAB EQUIP-LABORATORY APPARATUS,Surgery,NHS LOGISTICS,1017098574,6.79,
Department of Health,Salisbury NHS Foundation Trust,30-Sep-16,M & S EQUIPELECTEQUIPINST - OTHER,Surgery,NHS LOGISTICS,1017098574,22.92,
Department of Health,Salisbury NHS Foundation Trust,30-Sep-16,OTHER MEDICAL SUPPLIES,Clinical Support,NHS LOGISTICS,1017098574,12.21,
Department of Health,Salisbury NHS Foundation Trust,30-Sep-16,MEDSURGCONS-OTHER,Clinical Support,NHS LOGISTICS,1017098574,9.16,
Department of Health,Salisbury NHS Foundation Trust,30-Sep-16,ELECTRICAL EQUIPMENT,Musculo-Skeletal,NHS LOGISTICS,1017098574,0.33,
Department of Health,Salisbury NHS Foundation Trust,30-Sep-16,TISSUES HAND TOWELS & TOILET PAPER,Musculo-Skeletal,NHS LOGISTICS,1017098574,2.12,
Department of Health,Salisbury NHS Foundation Trust,30-Sep-16,COOKING & KITCHEN UTENSILS,Musculo-Skeletal,NHS LOGISTICS,1017098574,0.25,
Department of Health,Salisbury NHS Foundation Trust,30-Sep-16,SURGICAL INSTRUMENTS - GENERAL,Musculo-Skeletal,NHS LOGISTICS,1017098574,0.35,
Department of Health,Salisbury NHS Foundation Trust,30-Sep-16,OPTICAL  -  OTHER,Surgery,NHS LOGISTICS,1017098574,10.60,
Department of Health,Salisbury NHS Foundation Trust,30-Sep-16,MEDSURGCONS-OTHER,Clinical Support,NHS LOGISTICS,1017098574,7.61,
Department of Health,Salisbury NHS Foundation Trust,30-Sep-16,REFUSE DISPOSAL - CLINICAL CONT SERVICES,Corporate - ETS,NHS LOGISTICS,1017098574,73.61,
Department of Health,Salisbury NHS Foundation Trust,30-Sep-16,MED SURG EQUIP REP MAINT CLEANING,Clinical Support,NHS LOGISTICS,1017098574,22.08,
Department of Health,Salisbury NHS Foundation Trust,30-Sep-16,PATIENT APPLIANCES,Clinical Support,NHS LOGISTICS,1017098574,6.09,
Department of Health,Salisbury NHS Foundation Trust,30-Sep-16,DRUGS,Clinical Support,NHS LOGISTICS,1017098574,2.49,
Department of Health,Salisbury NHS Foundation Trust,30-Sep-16,MEDSURGCONS-OTHER,Surgery,NHS LOGISTICS,1017098574,1.94,
Department of Health,Salisbury NHS Foundation Trust,30-Sep-16,MEDSURGCONS-OTHER,Surgery,NHS LOGISTICS,1017098574,0.97,
Department of Health,Salisbury NHS Foundation Trust,30-Sep-16,MEDSURGCONS-OTHER,Surgery,NHS LOGISTICS,1017098574,20.36,
Department of Health,Salisbury NHS Foundation Trust,30-Sep-16,ADULTS HEARING AIDS,Surgery,NHS LOGISTICS,1017098574,15.00,
Department of Health,Salisbury NHS Foundation Trust,30-Sep-16,ADULTS HEARING AIDS,Surgery,NHS LOGISTICS,1017098574,154.87,
Department of Health,Salisbury NHS Foundation Trust,30-Sep-16,MEDSURGCONS-OTHER,Surgery,NHS LOGISTICS,1017098574,8.00,
Department of Health,Salisbury NHS Foundation Trust,30-Sep-16,TISSUES HAND TOWELS & TOILET PAPER,Surgery,NHS LOGISTICS,1017098574,2.12,
Department of Health,Salisbury NHS Foundation Trust,30-Sep-16,SURGICAL INSTRUMENTS - DISPOSABLE,Surgery,NHS LOGISTICS,1017098574,14.12,
Department of Health,Salisbury NHS Foundation Trust,30-Sep-16,M & S EQUIPELECTEQUIPINST - OTHER,Surgery,NHS LOGISTICS,1017098574,5.15,
Department of Health,Salisbury NHS Foundation Trust,30-Sep-16,DRESSINGS - PRE STERILE,Surgery,NHS LOGISTICS,1017098574,0.07,
Department of Health,Salisbury NHS Foundation Trust,30-Sep-16,TISSUES HAND TOWELS & TOILET PAPER,Surgery,NHS LOGISTICS,1017098574,0.74,
Department of Health,Salisbury NHS Foundation Trust,30-Sep-16,TISSUES HAND TOWELS & TOILET PAPER,Surgery,NHS LOGISTICS,1017098574,0.08,
Department of Health,Salisbury NHS Foundation Trust,30-Sep-16,BAGS SACKS - OTHER,Facilities,NHS LOGISTICS,1017098574,8.11,
Department of Health,Salisbury NHS Foundation Trust,30-Sep-16,LIQUID REFRESHMENTS,Facilities,NHS LOGISTICS,1017098574,0.78,
Department of Health,Salisbury NHS Foundation Trust,30-Sep-16,CLEANING MATERIALS PRODUCTS SUNDRIES,Facilities,NHS LOGISTICS,1017098574,3.75,
Department of Health,Salisbury NHS Foundation Trust,30-Sep-16,CLEANING MATERIALS PRODUCTS SUNDRIES,Facilities,NHS LOGISTICS,1017098574,5.50,
Department of Health,Salisbury NHS Foundation Trust,30-Sep-16,CLEANING MATERIALS PRODUCTS SUNDRIES,Facilities,NHS LOGISTICS,1017098574,4.08,
Department of Health,Salisbury NHS Foundation Trust,30-Sep-16,CLEANING MATERIALS PRODUCTS SUNDRIES,Facilities,NHS LOGISTICS,1017098574,17.04,
Department of Health,Salisbury NHS Foundation Trust,30-Sep-16,DISPOSABLE THEATRE DRAPES WIPES,Facilities,NHS LOGISTICS,1017098574,17.73,
Department of Health,Salisbury NHS Foundation Trust,30-Sep-16,CLEANING MATERIALS PRODUCTS SUNDRIES,Surgery,NHS LOGISTICS,1017098574,2.73,
Department of Health,Salisbury NHS Foundation Trust,30-Sep-16,DISPOSABLE THEATRE DRAPES WIPES,Surgery,NHS LOGISTICS,1017098574,0.65,
Department of Health,Salisbury NHS Foundation Trust,30-Sep-16,ADULTS HEARING AIDS,Surgery,NHS LOGISTICS,1017098574,0.64,
Department of Health,Salisbury NHS Foundation Trust,30-Sep-16,TISSUES HAND TOWELS & TOILET PAPER,Musculo-Skeletal,NHS LOGISTICS,1017098574,0.74,
Department of Health,Salisbury NHS Foundation Trust,30-Sep-16,MED SURG EQUIP REP MAINT CLEANING,Corporate - Finance & Procurement,NHS LOGISTICS,1017098574,78.26,
Department of Health,Salisbury NHS Foundation Trust,30-Sep-16,MEDSURGCONS-OTHER,Medicine,NHS LOGISTICS,1017098574,81.63,
Department of Health,Salisbury NHS Foundation Trust,30-Sep-16,MEDSURGCONS-OTHER,Medicine,NHS LOGISTICS,1017098574,65.31,
Department of Health,Salisbury NHS Foundation Trust,30-Sep-16,MEDSURGCONS-OTHER,Medicine,NHS LOGISTICS,1017098574,16.33,
Department of Health,Salisbury NHS Foundation Trust,30-Sep-16,MEDSURGCONS-OTHER,Medicine,NHS LOGISTICS,1017098574,3.45,
Department of Health,Salisbury NHS Foundation Trust,30-Sep-16,DRESSINGS - PRE STERILE,Corporate - Finance & Procurement,NHS LOGISTICS,1017098574,19.40,
Department of Health,Salisbury NHS Foundation Trust,30-Sep-16,LAB EQUIP-ANALYSERS,Corporate - Finance & Procurement,NHS LOGISTICS,1017098574,24.00,
Department of Health,Salisbury NHS Foundation Trust,30-Sep-16,DISPOSABLE THEATRE DRAPES WIPES,Corporate - Finance & Procurement,NHS LOGISTICS,1017098574,6.30,
Department of Health,Salisbury NHS Foundation Trust,30-Sep-16,DISPOSABLE THEATRE DRAPES WIPES,Corporate - Finance & Procurement,NHS LOGISTICS,1017098574,15.40,
Department of Health,Salisbury NHS Foundation Trust,30-Sep-16,CLEANING MATERIALS PRODUCTS SUNDRIES,Facilities,NHS LOGISTICS,1017098574,1.22,
Department of Health,Salisbury NHS Foundation Trust,30-Sep-16,HEALTHCARE - WEAR,Facilities,NHS LOGISTICS,1017098574,5.51,
Department of Health,Salisbury NHS Foundation Trust,30-Sep-16,MEDSURGCONS-OTHER,Facilities,NHS LOGISTICS,1017098574,2.20,
Department of Health,Salisbury NHS Foundation Trust,30-Sep-16,M & S EQUIPELECTEQUIPINST - OTHER,Clinical Support,NHS LOGISTICS,1017098574,10.42,
Department of Health,Salisbury NHS Foundation Trust,30-Sep-16,PATIENT APPLIANCES,Clinical Support,NHS LOGISTICS,1017098574,12.18,
Department of Health,Salisbury NHS Foundation Trust,30-Sep-16,PATIENT APPLIANCES,Clinical Support,NHS LOGISTICS,1017098574,19.14,
Department of Health,Salisbury NHS Foundation Trust,30-Sep-16,PATIENT APPLIANCES,Clinical Support,NHS LOGISTICS,1017098574,4.90,
Department of Health,Salisbury NHS Foundation Trust,30-Sep-16,TISSUES HAND TOWELS & TOILET PAPER,Clinical Support,NHS LOGISTICS,1017098574,2.86,
Department of Health,Salisbury NHS Foundation Trust,30-Sep-16,SERVICES FROM NHS BODIES,Clinical Support,NHS LOGISTICS,1017098574,1.32,
Department of Health,Salisbury NHS Foundation Trust,30-Sep-16,PATIENT APPLIANCES,Clinical Support,NHS LOGISTICS,1017098574,11.53,
Department of Health,Salisbury NHS Foundation Trust,30-Sep-16,SURGICAL INSTRUMENTS - GENERAL,Clinical Support,NHS LOGISTICS,1017098574,12.23,
Department of Health,Salisbury NHS Foundation Trust,30-Sep-16,DISPOSABLE THEATRE DRAPES WIPES,Clinical Support,NHS LOGISTICS,1017098574,0.65,
Department of Health,Salisbury NHS Foundation Trust,30-Sep-16,MEDSURGCONS-OTHER,Musculo-Skeletal,NHS LOGISTICS,1017098574,0.97,
Department of Health,Salisbury NHS Foundation Trust,30-Sep-16,LAB EQUIP-LABORATORY APPARATUS,Clinical Support,NHS LOGISTICS,1017098574,7.57,
Department of Health,Salisbury NHS Foundation Trust,30-Sep-16,LAB EQUIP-LABORATORY APPARATUS,Clinical Support,NHS LOGISTICS,1017098574,59.33,
Department of Health,Salisbury NHS Foundation Trust,30-Sep-16,LAB EQUIP-ANALYSERS,Clinical Support,NHS LOGISTICS,1017098574,17.38,
Department of Health,Salisbury NHS Foundation Trust,30-Sep-16,LAB EQUIP-LABORATORY APPARATUS,Clinical Support,NHS LOGISTICS,1017098574,131.02,
Department of Health,Salisbury NHS Foundation Trust,30-Sep-16,LAB EQUIP-LABORATORY APPARATUS,Clinical Support,NHS LOGISTICS,1017098574,10.27,
Department of Health,Salisbury NHS Foundation Trust,30-Sep-16,LAB EQUIP-LABORATORY APPARATUS,Clinical Support,NHS LOGISTICS,1017098574,18.84,
Department of Health,Salisbury NHS Foundation Trust,30-Sep-16,DRESSINGS  -  PROCEDURE PACKS,Clinical Support,NHS LOGISTICS,1017098574,8.51,
Department of Health,Salisbury NHS Foundation Trust,30-Sep-16,COOKING & KITCHEN UTENSILS,Clinical Support,NHS LOGISTICS,1017098574,2.45,
Department of Health,Salisbury NHS Foundation Trust,30-Sep-16,LAB EQUIP-LABORATORY APPARATUS,Clinical Support,NHS LOGISTICS,1017098574,15.27,
Department of Health,Salisbury NHS Foundation Trust,30-Sep-16,OTHER MEDICAL SUPPLIES,Clinical Support,NHS LOGISTICS,1017098574,91.00,
Department of Health,Salisbury NHS Foundation Trust,30-Sep-16,TISSUES HAND TOWELS & TOILET PAPER,Clinical Support,NHS LOGISTICS,1017098574,2.86,
Department of Health,Salisbury NHS Foundation Trust,30-Sep-16,MEDSURGCONS-OTHER,Surgery,NHS LOGISTICS,1017098574,2.33,
Department of Health,Salisbury NHS Foundation Trust,30-Sep-16,TISSUES HAND TOWELS & TOILET PAPER,Surgery,NHS LOGISTICS,1017098574,0.74,
Department of Health,Salisbury NHS Foundation Trust,30-Sep-16,BEVERAGES & AMBIENT FOOD,Surgery,NHS LOGISTICS,1017098574,2.16,
Department of Health,Salisbury NHS Foundation Trust,30-Sep-16,DISPOSABLE THEATRE DRAPES WIPES,Surgery,NHS LOGISTICS,1017098574,4.55,
Department of Health,Salisbury NHS Foundation Trust,30-Sep-16,DRUGS,Surgery,NHS LOGISTICS,1017098574,3.32,
Department of Health,Salisbury NHS Foundation Trust,30-Sep-16,SURGICAL INSTRUMENTS - GENERAL,Surgery,NHS LOGISTICS,1017098574,5.83,
Department of Health,Salisbury NHS Foundation Trust,30-Sep-16,DRUGS,Surgery,NHS LOGISTICS,1017098574,1.55,
Department of Health,Salisbury NHS Foundation Trust,30-Sep-16,MEDSURGCONS-SUTURES,Surgery,NHS LOGISTICS,1017098574,21.48,
Department of Health,Salisbury NHS Foundation Trust,30-Sep-16,TISSUES HAND TOWELS & TOILET PAPER,Medicine,NHS LOGISTICS,1017098574,1.48,
Department of Health,Salisbury NHS Foundation Trust,30-Sep-16,PATIENT APPLIANCES,Medicine,NHS LOGISTICS,1017098574,0.88,
Department of Health,Salisbury NHS Foundation Trust,30-Sep-16,TISSUES HAND TOWELS & TOILET PAPER,Musculo-Skeletal,NHS LOGISTICS,1017098574,0.74,
Department of Health,Salisbury NHS Foundation Trust,30-Sep-16,TISSUES HAND TOWELS & TOILET PAPER,Musculo-Skeletal,NHS LOGISTICS,1017098574,0.16,
Department of Health,Salisbury NHS Foundation Trust,30-Sep-16,DISPOSABLE THEATRE DRAPES WIPES,Musculo-Skeletal,NHS LOGISTICS,1017098574,1.30,
Department of Health,Salisbury NHS Foundation Trust,30-Sep-16,TISSUES HAND TOWELS & TOILET PAPER,Clinical Support,NHS LOGISTICS,1017098574,2.86,
Department of Health,Salisbury NHS Foundation Trust,30-Sep-16,TISSUES HAND TOWELS & TOILET PAPER,Clinical Support,NHS LOGISTICS,1017098574,0.31,
Department of Health,Salisbury NHS Foundation Trust,30-Sep-16,ANAESTHETIC EQUIPMENT ACCESSORIES,Surgery,NHS LOGISTICS,1017098574,10.06,
Department of Health,Salisbury NHS Foundation Trust,30-Sep-16,DRESSINGS - PRE STERILE,Surgery,NHS LOGISTICS,1017098574,3.35,
Department of Health,Salisbury NHS Foundation Trust,30-Sep-16,DRESSINGS - PRE STERILE,Surgery,NHS LOGISTICS,1017098574,0.41,
Department of Health,Salisbury NHS Foundation Trust,30-Sep-16,DRESSINGS - PRE STERILE,Surgery,NHS LOGISTICS,1017098574,1.24,
Department of Health,Salisbury NHS Foundation Trust,30-Sep-16,DRESSINGS - PRE STERILE,Surgery,NHS LOGISTICS,1017098574,4.08,
Department of Health,Salisbury NHS Foundation Trust,30-Sep-16,DRESSINGS - PRE STERILE,Surgery,NHS LOGISTICS,1017098574,2.04,
Department of Health,Salisbury NHS Foundation Trust,30-Sep-16,TISSUES HAND TOWELS & TOILET PAPER,Surgery,NHS LOGISTICS,1017098574,1.14,
Department of Health,Salisbury NHS Foundation Trust,30-Sep-16,TISSUES HAND TOWELS & TOILET PAPER,Surgery,NHS LOGISTICS,1017098574,2.12,
Department of Health,Salisbury NHS Foundation Trust,30-Sep-16,OTHER MEDICAL SUPPLIES,Surgery,NHS LOGISTICS,1017098574,0.94,
Department of Health,Salisbury NHS Foundation Trust,30-Sep-16,TISSUES HAND TOWELS & TOILET PAPER,Musculo-Skeletal,NHS LOGISTICS,1017098574,0.37,
Department of Health,Salisbury NHS Foundation Trust,30-Sep-16,DRESSINGS - PRE STERILE,Musculo-Skeletal,NHS LOGISTICS,1017098574,1.18,
Department of Health,Salisbury NHS Foundation Trust,30-Sep-16,MEDSURGCONS-OTHER,Musculo-Skeletal,NHS LOGISTICS,1017098574,3.85,
Department of Health,Salisbury NHS Foundation Trust,30-Sep-16,NON DISPOSABLE BED LINEN,Musculo-Skeletal,NHS LOGISTICS,1017098574,1.95,
Department of Health,Salisbury NHS Foundation Trust,30-Sep-16,OTHER MEDICAL SUPPLIES,Musculo-Skeletal,NHS LOGISTICS,1017098574,1.12,
Department of Health,Salisbury NHS Foundation Trust,30-Sep-16,MEDSURGCONS-OTHER,Musculo-Skeletal,NHS LOGISTICS,1017098574,0.97,
Department of Health,Salisbury NHS Foundation Trust,30-Sep-16,DISPOSABLE THEATRE DRAPES WIPES,Musculo-Skeletal,NHS LOGISTICS,1017098574,0.65,
Department of Health,Salisbury NHS Foundation Trust,30-Sep-16,DRESSINGS - PRE STERILE,Surgery,NHS LOGISTICS,1017098574,1.23,
Department of Health,Salisbury NHS Foundation Trust,30-Sep-16,CLEANING MATERIALS PRODUCTS SUNDRIES,Surgery,NHS LOGISTICS,1017098574,2.73,
Department of Health,Salisbury NHS Foundation Trust,30-Sep-16,TISSUES HAND TOWELS & TOILET PAPER,Surgery,NHS LOGISTICS,1017098574,0.14,
Department of Health,Salisbury NHS Foundation Trust,30-Sep-16,DISPOSABLE THEATRE DRAPES WIPES,Surgery,NHS LOGISTICS,1017098574,0.65,
Department of Health,Salisbury NHS Foundation Trust,30-Sep-16,TISSUES HAND TOWELS & TOILET PAPER,Surgery,NHS LOGISTICS,1017098574,0.37,
Department of Health,Salisbury NHS Foundation Trust,30-Sep-16,ANAESTHETIC EQUIPMENT ACCESSORIES,Surgery,NHS LOGISTICS,1017098574,0.65,
Department of Health,Salisbury NHS Foundation Trust,30-Sep-16,PATIENT APPLIANCES,Surgery,NHS LOGISTICS,1017098574,0.88,
Department of Health,Salisbury NHS Foundation Trust,30-Sep-16,TOILETRIES PERSONAL HYGIENE PRODUCTS,Surgery,NHS LOGISTICS,1017098574,0.83,
Department of Health,Salisbury NHS Foundation Trust,30-Sep-16,MEDSURGCONS-OTHER,Surgery,NHS LOGISTICS,1017098574,2.86,
Department of Health,Salisbury NHS Foundation Trust,30-Sep-16,MEDSURGCONS-OTHER,Surgery,NHS LOGISTICS,1017098574,0.80,
Department of Health,Salisbury NHS Foundation Trust,30-Sep-16,MEDSURGCONS-OTHER,Surgery,NHS LOGISTICS,1017098574,1.38,
Department of Health,Salisbury NHS Foundation Trust,30-Sep-16,M & S EQUIPELECTEQUIPINST - OTHER,Surgery,NHS LOGISTICS,1017098574,0.30,
Department of Health,Salisbury NHS Foundation Trust,30-Sep-16,OTHER MEDICAL SUPPLIES,Surgery,NHS LOGISTICS,1017098574,2.45,
Department of Health,Salisbury NHS Foundation Trust,30-Sep-16,OTHER MEDICAL SUPPLIES,Surgery,NHS LOGISTICS,1017098574,4.94,
Department of Health,Salisbury NHS Foundation Trust,30-Sep-16,MEDSURGCONS-OTHER,Surgery,NHS LOGISTICS,1017098574,3.94,
Department of Health,Salisbury NHS Foundation Trust,30-Sep-16,DISPOSABLE THEATRE DRAPES WIPES,Surgery,NHS LOGISTICS,1017098574,0.65,
Department of Health,Salisbury NHS Foundation Trust,30-Sep-16,DRESSINGS - PRE STERILE,Surgery,NHS LOGISTICS,1017098574,3.90,
Department of Health,Salisbury NHS Foundation Trust,30-Sep-16,DRESSINGS - PRE STERILE,Clinical Support,NHS LOGISTICS,1017098574,20.09,
Department of Health,Salisbury NHS Foundation Trust,30-Sep-16,DRESSINGS - PRE STERILE,Clinical Support,NHS LOGISTICS,1017098574,3.61,
Department of Health,Salisbury NHS Foundation Trust,30-Sep-16,DRESSINGS - PRE STERILE,Clinical Support,NHS LOGISTICS,1017098574,6.27,
Department of Health,Salisbury NHS Foundation Trust,30-Sep-16,DRESSINGS - PRE STERILE,Clinical Support,NHS LOGISTICS,1017098574,28.83,
Department of Health,Salisbury NHS Foundation Trust,30-Sep-16,TOILETRIES PERSONAL HYGIENE PRODUCTS,Clinical Support,NHS LOGISTICS,1017098574,1.45,
Department of Health,Salisbury NHS Foundation Trust,30-Sep-16,DRESSINGS - PRE STERILE,Clinical Support,NHS LOGISTICS,1017098574,5.21,
Department of Health,Salisbury NHS Foundation Trust,30-Sep-16,DRESSINGS - PRE STERILE,Clinical Support,NHS LOGISTICS,1017098574,19.07,
Department of Health,Salisbury NHS Foundation Trust,30-Sep-16,DRESSINGS - PRE STERILE,Clinical Support,NHS LOGISTICS,1017098574,6.23,
Department of Health,Salisbury NHS Foundation Trust,30-Sep-16,DRESSINGS - PRE STERILE,Clinical Support,NHS LOGISTICS,1017098574,13.41,
Department of Health,Salisbury NHS Foundation Trust,30-Sep-16,DRESSINGS - PRE STERILE,Clinical Support,NHS LOGISTICS,1017098574,14.37,
Department of Health,Salisbury NHS Foundation Trust,30-Sep-16,DRESSINGS - PRE STERILE,Clinical Support,NHS LOGISTICS,1017098574,13.31,
Department of Health,Salisbury NHS Foundation Trust,30-Sep-16,DRESSINGS - PRE STERILE,Clinical Support,NHS LOGISTICS,1017098574,2.37,
Department of Health,Salisbury NHS Foundation Trust,30-Sep-16,SERVICES FROM NHS BODIES,Clinical Support,NHS LOGISTICS,1017098574,14.40,
Department of Health,Salisbury NHS Foundation Trust,30-Sep-16,MED SURG EQUIP REP MAINT CLEANING,Clinical Support,NHS LOGISTICS,1017098574,8.03,
Department of Health,Salisbury NHS Foundation Trust,30-Sep-16,DRESSINGS - PRE STERILE,Clinical Support,NHS LOGISTICS,1017098574,24.11,
Department of Health,Salisbury NHS Foundation Trust,30-Sep-16,TISSUES HAND TOWELS & TOILET PAPER,Corporate - HR/Education,NHS LOGISTICS,1017098574,0.78,
Department of Health,Salisbury NHS Foundation Trust,30-Sep-16,TISSUES HAND TOWELS & TOILET PAPER,Medicine,NHS LOGISTICS,1017098574,0.37,
Department of Health,Salisbury NHS Foundation Trust,30-Sep-16,CLEANING MATERIALS PRODUCTS SUNDRIES,Medicine,NHS LOGISTICS,1017098574,1.09,
Department of Health,Salisbury NHS Foundation Trust,30-Sep-16,CLEANING MATERIALS PRODUCTS SUNDRIES,Medicine,NHS LOGISTICS,1017098574,5.19,
Department of Health,Salisbury NHS Foundation Trust,30-Sep-16,MEDSURGCONS-OTHER,Medicine,NHS LOGISTICS,1017098574,1.19,
Department of Health,Salisbury NHS Foundation Trust,30-Sep-16,TISSUES HAND TOWELS & TOILET PAPER,Medicine,NHS LOGISTICS,1017098574,0.07,
Department of Health,Salisbury NHS Foundation Trust,30-Sep-16,MISCELLANEOUS CONSUMABLE ITEMS,Clinical Support,NHS LOGISTICS,1017098574,17.42,
Department of Health,Salisbury NHS Foundation Trust,30-Sep-16,BAGS SACKS - OTHER,Surgery,NHS LOGISTICS,1017098574,2.40,
Department of Health,Salisbury NHS Foundation Trust,30-Sep-16,DISPOSABLE THEATRE DRAPES WIPES,Surgery,NHS LOGISTICS,1017098574,4.55,
Department of Health,Salisbury NHS Foundation Trust,30-Sep-16,DRUGS,Surgery,NHS LOGISTICS,1017098574,6.64,
Department of Health,Salisbury NHS Foundation Trust,30-Sep-16,MEDSURGCONS-OTHER,Surgery,NHS LOGISTICS,1017098574,2.15,
Department of Health,Salisbury NHS Foundation Trust,30-Sep-16,MEDSURGCONS-OTHER,Surgery,NHS LOGISTICS,1017098574,2.15,
Department of Health,Salisbury NHS Foundation Trust,30-Sep-16,OTHER MEDICAL SUPPLIES,Surgery,NHS LOGISTICS,1017098574,50.57,
Department of Health,Salisbury NHS Foundation Trust,30-Sep-16,DRUGS,Surgery,NHS LOGISTICS,1017098574,5.44,
Department of Health,Salisbury NHS Foundation Trust,30-Sep-16,CLEANING MATERIALS PRODUCTS SUNDRIES,Surgery,NHS LOGISTICS,1017098574,0.92,
Department of Health,Salisbury NHS Foundation Trust,30-Sep-16,DISPOSABLE THEATRE DRAPES WIPES,Surgery,NHS LOGISTICS,1017098574,0.65,
Department of Health,Salisbury NHS Foundation Trust,30-Sep-16,BEVERAGES & AMBIENT FOOD,Surgery,NHS LOGISTICS,1017098574,5.74,
Department of Health,Salisbury NHS Foundation Trust,30-Sep-16,BEVERAGES & AMBIENT FOOD,Surgery,NHS LOGISTICS,1017098574,0.29,
Department of Health,Salisbury NHS Foundation Trust,30-Sep-16,BEVERAGES & AMBIENT FOOD,Surgery,NHS LOGISTICS,1017098574,0.56,
Department of Health,Salisbury NHS Foundation Trust,30-Sep-16,MEDSURGCONS-OTHER,Musculo-Skeletal,NHS LOGISTICS,1017098574,8.59,
Department of Health,Salisbury NHS Foundation Trust,30-Sep-16,NON DISPOSABLE BED LINEN,Musculo-Skeletal,NHS LOGISTICS,1017098574,3.01,
Department of Health,Salisbury NHS Foundation Trust,30-Sep-16,MEDSURGCONS-OTHER,Musculo-Skeletal,NHS LOGISTICS,1017098574,2.39,
Department of Health,Salisbury NHS Foundation Trust,30-Sep-16,LAB EQUIP-LABORATORY APPARATUS,Musculo-Skeletal,NHS LOGISTICS,1017098574,0.40,
Department of Health,Salisbury NHS Foundation Trust,30-Sep-16,DISPOSABLE THEATRE DRAPES WIPES,Musculo-Skeletal,NHS LOGISTICS,1017098574,3.89,
Department of Health,Salisbury NHS Foundation Trust,30-Sep-16,TISSUES HAND TOWELS & TOILET PAPER,Clinical Support,NHS LOGISTICS,1017098574,4.24,
Department of Health,Salisbury NHS Foundation Trust,30-Sep-16,LAB EQUIP-LABORATORY APPARATUS,Clinical Support,NHS LOGISTICS,1017098574,1.51,
Department of Health,Salisbury NHS Foundation Trust,30-Sep-16,NON DISPOSABLE BED LINEN,Clinical Support,NHS LOGISTICS,1017098574,2.63,
Department of Health,Salisbury NHS Foundation Trust,30-Sep-16,MED SURG EQUIP REP MAINT CLEANING,Clinical Support,NHS LOGISTICS,1017098574,22.08,
Department of Health,Salisbury NHS Foundation Trust,30-Sep-16,M & S EQUIPELECTEQUIPINST - OTHER,Clinical Support,NHS LOGISTICS,1017098574,39.58,
Department of Health,Salisbury NHS Foundation Trust,30-Sep-16,TISSUES HAND TOWELS & TOILET PAPER,Clinical Support,NHS LOGISTICS,1017098574,0.08,
Department of Health,Salisbury NHS Foundation Trust,30-Sep-16,SURGICAL INSTRUMENTS - DISPOSABLE,Clinical Support,NHS LOGISTICS,1017098574,5.65,
Department of Health,Salisbury NHS Foundation Trust,30-Sep-16,DRESSINGS - PRE STERILE,Clinical Support,NHS LOGISTICS,1017098574,1.77,
Department of Health,Salisbury NHS Foundation Trust,30-Sep-16,OTHER MEDICAL SUPPLIES,Clinical Support,NHS LOGISTICS,1017098574,14.99,
Department of Health,Salisbury NHS Foundation Trust,30-Sep-16,DISPOSABLE THEATRE DRAPES WIPES,Clinical Support,NHS LOGISTICS,1017098574,0.65,
Department of Health,Salisbury NHS Foundation Trust,30-Sep-16,ADULTS HEARING AIDS,Surgery,NHS LOGISTICS,1017098574,747.48,
Department of Health,Salisbury NHS Foundation Trust,30-Sep-16,DRESSINGS - PRE STERILE,Clinical Support,NHS LOGISTICS,1017098574,1.53,
Department of Health,Salisbury NHS Foundation Trust,30-Sep-16,DRESSINGS - PRE STERILE,Clinical Support,NHS LOGISTICS,1017098574,0.90,
Department of Health,Salisbury NHS Foundation Trust,30-Sep-16,DRESSINGS - PRE STERILE,Clinical Support,NHS LOGISTICS,1017098574,1.23,
Department of Health,Salisbury NHS Foundation Trust,30-Sep-16,PATIENTS BEDWEAR UNISEX,Clinical Support,NHS LOGISTICS,1017098574,13.09,
Department of Health,Salisbury NHS Foundation Trust,30-Sep-16,CLEANING MATERIALS PRODUCTS SUNDRIES,Clinical Support,NHS LOGISTICS,1017098574,1.41,
Department of Health,Salisbury NHS Foundation Trust,30-Sep-16,M & S EQUIPELECTEQUIPINST - OTHER,Clinical Support,NHS LOGISTICS,1017098574,0.58,
Department of Health,Salisbury NHS Foundation Trust,30-Sep-16,MEDSURGCONS-OTHER,Clinical Support,NHS LOGISTICS,1017098574,1.94,
Department of Health,Salisbury NHS Foundation Trust,30-Sep-16,MEDSURGCONS-OTHER,Clinical Support,NHS LOGISTICS,1017098574,1.60,
Department of Health,Salisbury NHS Foundation Trust,30-Sep-16,MEDSURGCONS-OTHER,Clinical Support,NHS LOGISTICS,1017098574,1.38,
Department of Health,Salisbury NHS Foundation Trust,30-Sep-16,M & S EQUIPELECTEQUIPINST - OTHER,Clinical Support,NHS LOGISTICS,1017098574,0.30,
Department of Health,Salisbury NHS Foundation Trust,30-Sep-16,DISPOSABLE THEATRE DRAPES WIPES,Clinical Support,NHS LOGISTICS,1017098574,1.30,
Department of Health,Salisbury NHS Foundation Trust,30-Sep-16,DRESSINGS - PRE STERILE,Medicine,NHS LOGISTICS,1017098574,1.53,
Department of Health,Salisbury NHS Foundation Trust,30-Sep-16,DRESSINGS - PRE STERILE,Medicine,NHS LOGISTICS,1017098574,1.23,
Department of Health,Salisbury NHS Foundation Trust,30-Sep-16,MEDSURGCONS-OTHER,Medicine,NHS LOGISTICS,1017098574,1.04,
Department of Health,Salisbury NHS Foundation Trust,30-Sep-16,OTHER MEDICAL SUPPLIES,Medicine,NHS LOGISTICS,1017098574,1.86,
Department of Health,Salisbury NHS Foundation Trust,30-Sep-16,MEDSURGCONS-OTHER,Medicine,NHS LOGISTICS,1017098574,11.96,
Department of Health,Salisbury NHS Foundation Trust,30-Sep-16,MEDSURGCONS-OTHER,Medicine,NHS LOGISTICS,1017098574,0.97,
Department of Health,Salisbury NHS Foundation Trust,30-Sep-16,LAB EQUIP-LABORATORY APPARATUS,Medicine,NHS LOGISTICS,1017098574,1.58,
Department of Health,Salisbury NHS Foundation Trust,30-Sep-16,DISPOSABLE THEATRE DRAPES WIPES,Medicine,NHS LOGISTICS,1017098574,1.95,
Department of Health,Salisbury NHS Foundation Trust,30-Sep-16,DISPOSABLE THEATRE DRAPES WIPES,Medicine,NHS LOGISTICS,1017098574,0.65,
Department of Health,Salisbury NHS Foundation Trust,30-Sep-16,EGGS MILK OTHER DAIRY PRODUCTS,Clinical Support,NHS LOGISTICS,1017098574,4.22,
Department of Health,Salisbury NHS Foundation Trust,30-Sep-16,DRESSINGS - PRE STERILE,Medicine,NHS LOGISTICS,1017098574,1.53,
Department of Health,Salisbury NHS Foundation Trust,30-Sep-16,TISSUES HAND TOWELS & TOILET PAPER,Medicine,NHS LOGISTICS,1017098574,0.74,
Department of Health,Salisbury NHS Foundation Trust,30-Sep-16,PATIENT APPLIANCES,Medicine,NHS LOGISTICS,1017098574,2.64,
Department of Health,Salisbury NHS Foundation Trust,30-Sep-16,PATIENT APPLIANCES,Medicine,NHS LOGISTICS,1017098574,2.64,
Department of Health,Salisbury NHS Foundation Trust,30-Sep-16,PATIENT APPLIANCES,Medicine,NHS LOGISTICS,1017098574,2.64,
Department of Health,Salisbury NHS Foundation Trust,30-Sep-16,TISSUES HAND TOWELS & TOILET PAPER,Medicine,NHS LOGISTICS,1017098574,0.07,
Department of Health,Salisbury NHS Foundation Trust,30-Sep-16,DISPOSABLE THEATRE DRAPES WIPES,Medicine,NHS LOGISTICS,1017098574,0.65,
Department of Health,Salisbury NHS Foundation Trust,30-Sep-16,MEDSURGCONS-OTHER,Surgery,NHS LOGISTICS,1017098574,40.82,
Department of Health,Salisbury NHS Foundation Trust,30-Sep-16,TISSUES HAND TOWELS & TOILET PAPER,Surgery,NHS LOGISTICS,1017098574,0.37,
Department of Health,Salisbury NHS Foundation Trust,30-Sep-16,MEDSURGCONS-OTHER,Surgery,NHS LOGISTICS,1017098574,12.17,
Department of Health,Salisbury NHS Foundation Trust,30-Sep-16,DISPOSABLE THEATRE DRAPES WIPES,Surgery,NHS LOGISTICS,1017098574,1.30,
Department of Health,Salisbury NHS Foundation Trust,30-Sep-16,TISSUES HAND TOWELS & TOILET PAPER,Medicine,NHS LOGISTICS,1017098574,0.21,
Department of Health,Salisbury NHS Foundation Trust,30-Sep-16,TISSUES HAND TOWELS & TOILET PAPER,Surgery,NHS LOGISTICS,1017098574,0.14,
Department of Health,Salisbury NHS Foundation Trust,30-Sep-16,TISSUES HAND TOWELS & TOILET PAPER,Surgery,NHS LOGISTICS,1017098574,1.11,
Department of Health,Salisbury NHS Foundation Trust,30-Sep-16,TISSUES HAND TOWELS & TOILET PAPER,Surgery,NHS LOGISTICS,1017098574,0.16,
Department of Health,Salisbury NHS Foundation Trust,30-Sep-16,DISPOSABLE THEATRE DRAPES WIPES,Surgery,NHS LOGISTICS,1017098574,0.42,
Department of Health,Salisbury NHS Foundation Trust,30-Sep-16,SURGICAL INSTRUMENTS - DISPOSABLE,Clinical Support,NHS LOGISTICS,1017098574,11.29,
Department of Health,Salisbury NHS Foundation Trust,30-Sep-16,MEDSURGCONS-SUTURES,Surgery,NHS LOGISTICS,1017098574,2.51,
Department of Health,Salisbury NHS Foundation Trust,30-Sep-16,SURGICAL INSTRUMENTS - GENERAL,Medicine,NHS LOGISTICS,1017098574,3.93,
Department of Health,Salisbury NHS Foundation Trust,30-Sep-16,TISSUES HAND TOWELS & TOILET PAPER,Medicine,NHS LOGISTICS,1017098574,0.28,
Department of Health,Salisbury NHS Foundation Trust,30-Sep-16,DISPOSABLE THEATRE DRAPES WIPES,Medicine,NHS LOGISTICS,1017098574,1.30,
Department of Health,Salisbury NHS Foundation Trust,30-Sep-16,DRESSINGS - PRE STERILE,Musculo-Skeletal,NHS LOGISTICS,1017098574,1.28,
Department of Health,Salisbury NHS Foundation Trust,30-Sep-16,DRESSINGS - PRE STERILE,Musculo-Skeletal,NHS LOGISTICS,1017098574,9.52,
Department of Health,Salisbury NHS Foundation Trust,30-Sep-16,DRESSINGS - PRE STERILE,Musculo-Skeletal,NHS LOGISTICS,1017098574,10.75,
Department of Health,Salisbury NHS Foundation Trust,30-Sep-16,DRESSINGS - PRE STERILE,Musculo-Skeletal,NHS LOGISTICS,1017098574,4.05,
Department of Health,Salisbury NHS Foundation Trust,30-Sep-16,DRESSINGS - PRE STERILE,Musculo-Skeletal,NHS LOGISTICS,1017098574,4.38,
Department of Health,Salisbury NHS Foundation Trust,30-Sep-16,DRESSINGS - PRE STERILE,Musculo-Skeletal,NHS LOGISTICS,1017098574,4.05,
Department of Health,Salisbury NHS Foundation Trust,30-Sep-16,DRESSINGS - PRE STERILE,Musculo-Skeletal,NHS LOGISTICS,1017098574,4.05,
Department of Health,Salisbury NHS Foundation Trust,30-Sep-16,DRESSINGS - PRE STERILE,Musculo-Skeletal,NHS LOGISTICS,1017098574,8.75,
Department of Health,Salisbury NHS Foundation Trust,30-Sep-16,DRESSINGS - PRE STERILE,Musculo-Skeletal,NHS LOGISTICS,1017098574,4.66,
Department of Health,Salisbury NHS Foundation Trust,30-Sep-16,DRESSINGS - PRE STERILE,Musculo-Skeletal,NHS LOGISTICS,1017098574,4.66,
Department of Health,Salisbury NHS Foundation Trust,30-Sep-16,DRESSINGS - PRE STERILE,Musculo-Skeletal,NHS LOGISTICS,1017098574,5.01,
Department of Health,Salisbury NHS Foundation Trust,30-Sep-16,DRESSINGS - PRE STERILE,Musculo-Skeletal,NHS LOGISTICS,1017098574,10.01,
Department of Health,Salisbury NHS Foundation Trust,30-Sep-16,DRESSINGS - PRE STERILE,Musculo-Skeletal,NHS LOGISTICS,1017098574,2.42,
Department of Health,Salisbury NHS Foundation Trust,30-Sep-16,DRESSINGS - PRE STERILE,Musculo-Skeletal,NHS LOGISTICS,1017098574,1.34,
Department of Health,Salisbury NHS Foundation Trust,30-Sep-16,DRESSINGS - PRE STERILE,Musculo-Skeletal,NHS LOGISTICS,1017098574,1.48,
Department of Health,Salisbury NHS Foundation Trust,30-Sep-16,LAB EQUIP-LABORATORY APPARATUS,Corporate - HR/Education,NHS LOGISTICS,1017098574,0.79,
Department of Health,Salisbury NHS Foundation Trust,30-Sep-16,DISPOSABLE THEATRE DRAPES WIPES,Surgery,NHS LOGISTICS,1017098574,17.04,
Department of Health,Salisbury NHS Foundation Trust,30-Sep-16,ELECTRICAL EQUIPMENT,Surgery,NHS LOGISTICS,1017098574,0.67,
Department of Health,Salisbury NHS Foundation Trust,30-Sep-16,MEDSURGCONS-OTHER,Surgery,NHS LOGISTICS,1017098574,20.36,
Department of Health,Salisbury NHS Foundation Trust,30-Sep-16,SURGICAL INSTRUMENTS - GENERAL,Surgery,NHS LOGISTICS,1017098574,15.29,
Department of Health,Salisbury NHS Foundation Trust,30-Sep-16,LIQUID REFRESHMENTS,Facilities,NHS LOGISTICS,1017098574,3.47,
Department of Health,Salisbury NHS Foundation Trust,30-Sep-16,LIQUID REFRESHMENTS,Facilities,NHS LOGISTICS,1017098574,2.65,
Department of Health,Salisbury NHS Foundation Trust,30-Sep-16,LIQUID REFRESHMENTS,Facilities,NHS LOGISTICS,1017098574,0.78,
Department of Health,Salisbury NHS Foundation Trust,30-Sep-16,LIQUID REFRESHMENTS,Facilities,NHS LOGISTICS,1017098574,0.93,
Department of Health,Salisbury NHS Foundation Trust,30-Sep-16,LIQUID REFRESHMENTS,Facilities,NHS LOGISTICS,1017098574,2.65,
Department of Health,Salisbury NHS Foundation Trust,30-Sep-16,LIQUID REFRESHMENTS,Facilities,NHS LOGISTICS,1017098574,0.51,
Department of Health,Salisbury NHS Foundation Trust,30-Sep-16,BEVERAGES & AMBIENT FOOD,Facilities,NHS LOGISTICS,1017098574,1.12,
Department of Health,Salisbury NHS Foundation Trust,30-Sep-16,FLAVOURINGS HERBS SPICES,Facilities,NHS LOGISTICS,1017098574,1.23,
Department of Health,Salisbury NHS Foundation Trust,30-Sep-16,BEVERAGES & AMBIENT FOOD,Facilities,NHS LOGISTICS,1017098574,4.90,
Department of Health,Salisbury NHS Foundation Trust,30-Sep-16,BEVERAGES & AMBIENT FOOD,Facilities,NHS LOGISTICS,1017098574,6.52,
Department of Health,Salisbury NHS Foundation Trust,30-Sep-16,LIQUID REFRESHMENTS,Facilities,NHS LOGISTICS,1017098574,23.12,
Department of Health,Salisbury NHS Foundation Trust,30-Sep-16,LIQUID REFRESHMENTS,Facilities,NHS LOGISTICS,1017098574,1.32,
Department of Health,Salisbury NHS Foundation Trust,30-Sep-16,BEVERAGES & AMBIENT FOOD,Facilities,NHS LOGISTICS,1017098574,10.01,
Department of Health,Salisbury NHS Foundation Trust,30-Sep-16,LIQUID REFRESHMENTS,Facilities,NHS LOGISTICS,1017098574,1.16,
Department of Health,Salisbury NHS Foundation Trust,30-Sep-16,BEVERAGES & AMBIENT FOOD,Facilities,NHS LOGISTICS,1017098574,14.06,
Department of Health,Salisbury NHS Foundation Trust,30-Sep-16,BEVERAGES & AMBIENT FOOD,Facilities,NHS LOGISTICS,1017098574,0.38,
Department of Health,Salisbury NHS Foundation Trust,30-Sep-16,PAPER ITEMS GENERAL STATIONERY SUNDRIES,Facilities,NHS LOGISTICS,1017098574,2.60,
Department of Health,Salisbury NHS Foundation Trust,30-Sep-16,BEVERAGES & AMBIENT FOOD,Facilities,NHS LOGISTICS,1017098574,1.19,
Department of Health,Salisbury NHS Foundation Trust,30-Sep-16,LIQUID REFRESHMENTS,Facilities,NHS LOGISTICS,1017098574,1.86,
Department of Health,Salisbury NHS Foundation Trust,30-Sep-16,BEVERAGES & AMBIENT FOOD,Facilities,NHS LOGISTICS,1017098574,5.65,
Department of Health,Salisbury NHS Foundation Trust,30-Sep-16,PATIENTS BEDWEAR UNISEX,Clinical Support,NHS LOGISTICS,1017098574,1.60,
Department of Health,Salisbury NHS Foundation Trust,30-Sep-16,DISPOSABLE THEATRE DRAPES WIPES,Clinical Support,NHS LOGISTICS,1017098574,3.42,
Department of Health,Salisbury NHS Foundation Trust,30-Sep-16,DRESSINGS - PRE STERILE,Clinical Support,NHS LOGISTICS,1017098574,0.07,
Department of Health,Salisbury NHS Foundation Trust,30-Sep-16,MED SURG EQUIP REP MAINT CLEANING,Clinical Support,NHS LOGISTICS,1017098574,2.19,
Department of Health,Salisbury NHS Foundation Trust,30-Sep-16,BAGS SACKS - OTHER,Musculo-Skeletal,NHS LOGISTICS,1017098574,0.52,
Department of Health,Salisbury NHS Foundation Trust,30-Sep-16,DRESSINGS - PRE STERILE,Musculo-Skeletal,NHS LOGISTICS,1017098574,3.06,
Department of Health,Salisbury NHS Foundation Trust,30-Sep-16,CLEANING MATERIALS PRODUCTS SUNDRIES,Musculo-Skeletal,NHS LOGISTICS,1017098574,1.09,
Department of Health,Salisbury NHS Foundation Trust,30-Sep-16,DRESSINGS - PRE STERILE,Musculo-Skeletal,NHS LOGISTICS,1017098574,1.24,
Department of Health,Salisbury NHS Foundation Trust,30-Sep-16,TOILETRIES PERSONAL HYGIENE PRODUCTS,Musculo-Skeletal,NHS LOGISTICS,1017098574,0.83,
Department of Health,Salisbury NHS Foundation Trust,30-Sep-16,TISSUES HAND TOWELS & TOILET PAPER,Musculo-Skeletal,NHS LOGISTICS,1017098574,0.14,
Department of Health,Salisbury NHS Foundation Trust,30-Sep-16,TOILETRIES PERSONAL HYGIENE PRODUCTS,Musculo-Skeletal,NHS LOGISTICS,1017098574,0.83,
Department of Health,Salisbury NHS Foundation Trust,30-Sep-16,DISPOSABLE THEATRE DRAPES WIPES,Musculo-Skeletal,NHS LOGISTICS,1017098574,1.30,
Department of Health,Salisbury NHS Foundation Trust,30-Sep-16,OTHER MEDICAL SUPPLIES,Medicine,NHS LOGISTICS,1017098574,22.06,
Department of Health,Salisbury NHS Foundation Trust,30-Sep-16,CLEANING MATERIALS PRODUCTS SUNDRIES,Medicine,NHS LOGISTICS,1017098574,1.09,
Department of Health,Salisbury NHS Foundation Trust,30-Sep-16,TISSUES HAND TOWELS & TOILET PAPER,Medicine,NHS LOGISTICS,1017098574,0.16,
Department of Health,Salisbury NHS Foundation Trust,30-Sep-16,OTHER MEDICAL SUPPLIES,Medicine,NHS LOGISTICS,1017098574,0.59,
Department of Health,Salisbury NHS Foundation Trust,30-Sep-16,DRESSINGS - PRE STERILE,Medicine,NHS LOGISTICS,1017098574,0.14,
Department of Health,Salisbury NHS Foundation Trust,30-Sep-16,TISSUES HAND TOWELS & TOILET PAPER,Surgery,NHS LOGISTICS,1017098574,0.74,
Department of Health,Salisbury NHS Foundation Trust,30-Sep-16,DISPOSABLE THEATRE DRAPES WIPES,Surgery,NHS LOGISTICS,1017098574,4.55,
Department of Health,Salisbury NHS Foundation Trust,30-Sep-16,DRUGS,Surgery,NHS LOGISTICS,1017098574,3.32,
Department of Health,Salisbury NHS Foundation Trust,30-Sep-16,BEVERAGES & AMBIENT FOOD,Surgery,NHS LOGISTICS,1017098574,2.87,
Department of Health,Salisbury NHS Foundation Trust,30-Sep-16,BEVERAGES & AMBIENT FOOD,Surgery,NHS LOGISTICS,1017098574,0.14,
Department of Health,Salisbury NHS Foundation Trust,30-Sep-16,DRUGS,Surgery,NHS LOGISTICS,1017098574,3.11,
Department of Health,Salisbury NHS Foundation Trust,30-Sep-16,BABY TEXTURE MODIFIED FOODS,Clinical Support,NHS LOGISTICS,1017098574,3.33,
Department of Health,Salisbury NHS Foundation Trust,30-Sep-16,BABY TEXTURE MODIFIED FOODS,Clinical Support,NHS LOGISTICS,1017098574,6.66,
Department of Health,Salisbury NHS Foundation Trust,30-Sep-16,TISSUES HAND TOWELS & TOILET PAPER,Clinical Support,NHS LOGISTICS,1017098574,4.24,
Department of Health,Salisbury NHS Foundation Trust,30-Sep-16,SERVICES FROM NHS BODIES,Clinical Support,NHS LOGISTICS,1017098574,1.32,
Department of Health,Salisbury NHS Foundation Trust,30-Sep-16,LAB REAGENTS-ANALYTICAL KITS,Clinical Support,NHS LOGISTICS,1017098574,28.87,
Department of Health,Salisbury NHS Foundation Trust,30-Sep-16,DRESSINGS - PRE STERILE,Clinical Support,NHS LOGISTICS,1017098574,0.07,
Department of Health,Salisbury NHS Foundation Trust,30-Sep-16,LAB EQUIP-LABORATORY APPARATUS,Clinical Support,NHS LOGISTICS,1017098574,1.51,
Department of Health,Salisbury NHS Foundation Trust,30-Sep-16,CLEANING MATERIALS PRODUCTS SUNDRIES,Surgery,NHS LOGISTICS,1017098574,1.41,
Department of Health,Salisbury NHS Foundation Trust,30-Sep-16,TISSUES HAND TOWELS & TOILET PAPER,Medicine,NHS LOGISTICS,1017098574,0.74,
Department of Health,Salisbury NHS Foundation Trust,30-Sep-16,ELECTRICAL EQUIPMENT,Surgery,NHS LOGISTICS,1017098574,1.00,
Department of Health,Salisbury NHS Foundation Trust,30-Sep-16,ELECTRICAL EQUIPMENT,Surgery,NHS LOGISTICS,1017098574,0.80,
Department of Health,Salisbury NHS Foundation Trust,30-Sep-16,TUBES,Medicine,NHS LOGISTICS,1017098574,1.41,
Department of Health,Salisbury NHS Foundation Trust,30-Sep-16,DISPOSABLE THEATRE DRAPES WIPES,Medicine,NHS LOGISTICS,1017098574,21.20,
Department of Health,Salisbury NHS Foundation Trust,30-Sep-16,TISSUES HAND TOWELS & TOILET PAPER,Medicine,NHS LOGISTICS,1017098574,0.08,
Department of Health,Salisbury NHS Foundation Trust,30-Sep-16,TISSUES HAND TOWELS & TOILET PAPER,Musculo-Skeletal,NHS LOGISTICS,1017098574,0.37,
Department of Health,Salisbury NHS Foundation Trust,30-Sep-16,NON DISPOSABLE BED LINEN,Musculo-Skeletal,NHS LOGISTICS,1017098574,2.44,
Department of Health,Salisbury NHS Foundation Trust,30-Sep-16,MEDSURGCONS-OTHER,Musculo-Skeletal,NHS LOGISTICS,1017098574,1.94,
Department of Health,Salisbury NHS Foundation Trust,30-Sep-16,TOILETRIES PERSONAL HYGIENE PRODUCTS,Musculo-Skeletal,NHS LOGISTICS,1017098574,0.83,
Department of Health,Salisbury NHS Foundation Trust,30-Sep-16,DISPOSABLE THEATRE DRAPES WIPES,Musculo-Skeletal,NHS LOGISTICS,1017098574,1.30,
Department of Health,Salisbury NHS Foundation Trust,30-Sep-16,MEDSURGCONS-OTHER,Surgery,NHS LOGISTICS,1017098574,0.80,
Department of Health,Salisbury NHS Foundation Trust,30-Sep-16,DISPOSABLE THEATRE DRAPES WIPES,Surgery,NHS LOGISTICS,1017098574,0.65,
Department of Health,Salisbury NHS Foundation Trust,30-Sep-16,DRESSINGS - PRE STERILE,Musculo-Skeletal,NHS LOGISTICS,1017098574,0.40,
Department of Health,Salisbury NHS Foundation Trust,30-Sep-16,DRESSINGS - PRE STERILE,Musculo-Skeletal,NHS LOGISTICS,1017098574,12.23,
Department of Health,Salisbury NHS Foundation Trust,30-Sep-16,DRESSINGS - PRE STERILE,Musculo-Skeletal,NHS LOGISTICS,1017098574,0.16,
Department of Health,Salisbury NHS Foundation Trust,30-Sep-16,TISSUES HAND TOWELS & TOILET PAPER,Musculo-Skeletal,NHS LOGISTICS,1017098574,0.37,
Department of Health,Salisbury NHS Foundation Trust,30-Sep-16,MEDSURGCONS-OTHER,Musculo-Skeletal,NHS LOGISTICS,1017098574,3.85,
Department of Health,Salisbury NHS Foundation Trust,30-Sep-16,MEDSURGCONS-OTHER,Musculo-Skeletal,NHS LOGISTICS,1017098574,0.97,
Department of Health,Salisbury NHS Foundation Trust,30-Sep-16,MEDSURGCONS-OTHER,Musculo-Skeletal,NHS LOGISTICS,1017098574,1.19,
Department of Health,Salisbury NHS Foundation Trust,30-Sep-16,DISPOSABLE THEATRE DRAPES WIPES,Musculo-Skeletal,NHS LOGISTICS,1017098574,0.65,
Department of Health,Salisbury NHS Foundation Trust,30-Sep-16,DRESSINGS - PRE STERILE,Musculo-Skeletal,NHS LOGISTICS,1017098574,1.53,
Department of Health,Salisbury NHS Foundation Trust,30-Sep-16,DRESSINGS - PRE STERILE,Musculo-Skeletal,NHS LOGISTICS,1017098574,1.23,
Department of Health,Salisbury NHS Foundation Trust,30-Sep-16,TISSUES HAND TOWELS & TOILET PAPER,Musculo-Skeletal,NHS LOGISTICS,1017098574,2.12,
Department of Health,Salisbury NHS Foundation Trust,30-Sep-16,OTHER MEDICAL SUPPLIES,Musculo-Skeletal,NHS LOGISTICS,1017098574,0.28,
Department of Health,Salisbury NHS Foundation Trust,30-Sep-16,BAGS SACKS - OTHER,Musculo-Skeletal,NHS LOGISTICS,1017098574,0.86,
Department of Health,Salisbury NHS Foundation Trust,30-Sep-16,DRESSINGS - PRE STERILE,Musculo-Skeletal,NHS LOGISTICS,1017098574,0.48,
Department of Health,Salisbury NHS Foundation Trust,30-Sep-16,TUBES,Musculo-Skeletal,NHS LOGISTICS,1017098574,1.37,
Department of Health,Salisbury NHS Foundation Trust,30-Sep-16,DRESSINGS - PRE STERILE,Surgery,NHS LOGISTICS,1017098574,63.31,
Department of Health,Salisbury NHS Foundation Trust,30-Sep-16,M & S EQUIPELECTEQUIPINST - OTHER,Surgery,NHS LOGISTICS,1017098574,9.94,
Department of Health,Salisbury NHS Foundation Trust,30-Sep-16,M & S EQUIPELECTEQUIPINST - OTHER,Surgery,NHS LOGISTICS,1017098574,8.70,
Department of Health,Salisbury NHS Foundation Trust,30-Sep-16,M & S EQUIPELECTEQUIPINST - OTHER,Surgery,NHS LOGISTICS,1017098574,63.60,
Department of Health,Salisbury NHS Foundation Trust,30-Sep-16,DISPOSABLE THEATRE DRAPES WIPES,Surgery,NHS LOGISTICS,1017098574,17.16,
Department of Health,Salisbury NHS Foundation Trust,30-Sep-16,ELECTRICAL EQUIPMENT,Surgery,NHS LOGISTICS,1017098574,1.57,
Department of Health,Salisbury NHS Foundation Trust,30-Sep-16,PATIENT APPLIANCES,Clinical Support,NHS LOGISTICS,1017098574,0.55,
Department of Health,Salisbury NHS Foundation Trust,30-Sep-16,ANAESTHETIC EQUIPMENT ACCESSORIES,Clinical Support,NHS LOGISTICS,1017098574,17.05,
Department of Health,Salisbury NHS Foundation Trust,30-Sep-16,MEDSURGCONS-OTHER,Clinical Support,NHS LOGISTICS,1017098574,9.53,
Department of Health,Salisbury NHS Foundation Trust,30-Sep-16,MEDSURGCONS-OTHER,Clinical Support,NHS LOGISTICS,1017098574,0.79,
Department of Health,Salisbury NHS Foundation Trust,30-Sep-16,DISPOSABLE THEATRE DRAPES WIPES,Clinical Support,NHS LOGISTICS,1017098574,0.65,
Department of Health,Salisbury NHS Foundation Trust,30-Sep-16,M & S EQUIPELECTEQUIPINST - OTHER,Clinical Support,NHS LOGISTICS,1017098574,22.92,
Department of Health,Salisbury NHS Foundation Trust,30-Sep-16,TISSUES HAND TOWELS & TOILET PAPER,Clinical Support,NHS LOGISTICS,1017098574,0.37,
Department of Health,Salisbury NHS Foundation Trust,30-Sep-16,M & S EQUIPELECTEQUIPINST - OTHER,Clinical Support,NHS LOGISTICS,1017098574,37.19,
Department of Health,Salisbury NHS Foundation Trust,30-Sep-16,TISSUES HAND TOWELS & TOILET PAPER,Clinical Support,NHS LOGISTICS,1017098574,0.16,
Department of Health,Salisbury NHS Foundation Trust,30-Sep-16,DRESSINGS - PRE STERILE,Clinical Support,NHS LOGISTICS,1017098574,1.33,
Department of Health,Salisbury NHS Foundation Trust,30-Sep-16,OTHER MEDICAL SUPPLIES,Clinical Support,NHS LOGISTICS,1017098574,14.99,
Department of Health,Salisbury NHS Foundation Trust,30-Sep-16,TISSUES HAND TOWELS & TOILET PAPER,Clinical Support,NHS LOGISTICS,1017098574,4.24,
Department of Health,Salisbury NHS Foundation Trust,30-Sep-16,OTHER MEDICAL SUPPLIES,Clinical Support,NHS LOGISTICS,1017098574,0.28,
Department of Health,Salisbury NHS Foundation Trust,30-Sep-16,BEVERAGES & AMBIENT FOOD,Surgery,NHS LOGISTICS,1017098574,2.87,
Department of Health,Salisbury NHS Foundation Trust,30-Sep-16,BEVERAGES & AMBIENT FOOD,Surgery,NHS LOGISTICS,1017098574,0.29,
Department of Health,Salisbury NHS Foundation Trust,30-Sep-16,BEVERAGES & AMBIENT FOOD,Surgery,NHS LOGISTICS,1017098574,0.56,
Department of Health,Salisbury NHS Foundation Trust,30-Sep-16,OTHER MEDICAL SUPPLIES,Surgery,NHS LOGISTICS,1017098574,4.91,
Department of Health,Salisbury NHS Foundation Trust,30-Sep-16,DRESSINGS - PRE STERILE,Medicine,NHS LOGISTICS,1017098574,0.25,
Department of Health,Salisbury NHS Foundation Trust,30-Sep-16,PATIENT APPLIANCES,Medicine,NHS LOGISTICS,1017098574,0.82,
Department of Health,Salisbury NHS Foundation Trust,30-Sep-16,PATIENT APPLIANCES,Medicine,NHS LOGISTICS,1017098574,1.65,
Department of Health,Salisbury NHS Foundation Trust,30-Sep-16,PATIENT APPLIANCES,Medicine,NHS LOGISTICS,1017098574,1.65,
Department of Health,Salisbury NHS Foundation Trust,30-Sep-16,PATIENT APPLIANCES,Medicine,NHS LOGISTICS,1017098574,0.82,
Department of Health,Salisbury NHS Foundation Trust,30-Sep-16,MEDSURGCONS-OTHER,Medicine,NHS LOGISTICS,1017098574,11.96,
Department of Health,Salisbury NHS Foundation Trust,30-Sep-16,LAB EQUIP-LABORATORY APPARATUS,Medicine,NHS LOGISTICS,1017098574,1.58,
Department of Health,Salisbury NHS Foundation Trust,30-Sep-16,DISPOSABLE THEATRE DRAPES WIPES,Medicine,NHS LOGISTICS,1017098574,1.30,
Department of Health,Salisbury NHS Foundation Trust,30-Sep-16,ELECTRICAL EQUIPMENT,Medicine,NHS LOGISTICS,1017098574,1.93,
Department of Health,Salisbury NHS Foundation Trust,30-Sep-16,TISSUES HAND TOWELS & TOILET PAPER,Medicine,NHS LOGISTICS,1017098574,4.98,
Department of Health,Salisbury NHS Foundation Trust,30-Sep-16,SURGICAL INSTRUMENTS - DISPOSABLE,Surgery,NHS LOGISTICS,1017098574,0.72,
Department of Health,Salisbury NHS Foundation Trust,30-Sep-16,COOKING & KITCHEN UTENSILS,Surgery,NHS LOGISTICS,1017098574,3.40,
Department of Health,Salisbury NHS Foundation Trust,30-Sep-16,DISPOSABLE THEATRE DRAPES WIPES,Surgery,NHS LOGISTICS,1017098574,6.67,
Department of Health,Salisbury NHS Foundation Trust,30-Sep-16,SURGICAL INSTRUMENTS - GENERAL,Surgery,NHS LOGISTICS,1017098574,1.80,
Department of Health,Salisbury NHS Foundation Trust,30-Sep-16,MEDSURGCONS-OTHER,Surgery,NHS LOGISTICS,1017098574,2.15,
Department of Health,Salisbury NHS Foundation Trust,30-Sep-16,MEDSURGCONS-OTHER,Surgery,NHS LOGISTICS,1017098574,2.15,
Department of Health,Salisbury NHS Foundation Trust,30-Sep-16,OTHER MEDICAL SUPPLIES,Surgery,NHS LOGISTICS,1017098574,101.14,
Department of Health,Salisbury NHS Foundation Trust,30-Sep-16,DRESSINGS - PRE STERILE,Surgery,NHS LOGISTICS,1017098574,2.89,
Department of Health,Salisbury NHS Foundation Trust,30-Sep-16,DRESSINGS - PRE STERILE,Medicine,NHS LOGISTICS,1017098574,3.06,
Department of Health,Salisbury NHS Foundation Trust,30-Sep-16,TUBES,Medicine,NHS LOGISTICS,1017098574,2.74,
Department of Health,Salisbury NHS Foundation Trust,30-Sep-16,OTHER MEDICAL SUPPLIES,Medicine,NHS LOGISTICS,1017098574,1.12,
Department of Health,Salisbury NHS Foundation Trust,30-Sep-16,MEDSURGCONS-OTHER,Medicine,NHS LOGISTICS,1017098574,11.96,
Department of Health,Salisbury NHS Foundation Trust,30-Sep-16,MEDSURGCONS-OTHER,Medicine,NHS LOGISTICS,1017098574,0.80,
Department of Health,Salisbury NHS Foundation Trust,30-Sep-16,DISPOSABLE THEATRE DRAPES WIPES,Medicine,NHS LOGISTICS,1017098574,1.30,
Department of Health,Salisbury NHS Foundation Trust,30-Sep-16,SURGICAL INSTRUMENTS - GENERAL,Medicine,NHS LOGISTICS,1017098574,1.97,
Department of Health,Salisbury NHS Foundation Trust,30-Sep-16,TISSUES HAND TOWELS & TOILET PAPER,Medicine,NHS LOGISTICS,1017098574,0.63,
Department of Health,Salisbury NHS Foundation Trust,30-Sep-16,DISPOSABLE THEATRE DRAPES WIPES,Medicine,NHS LOGISTICS,1017098574,1.30,
Department of Health,Salisbury NHS Foundation Trust,30-Sep-16,DRESSINGS - PRE STERILE,Surgery,NHS LOGISTICS,1017098574,1.53,
Department of Health,Salisbury NHS Foundation Trust,30-Sep-16,MEDSURGCONS-OTHER,Surgery,NHS LOGISTICS,1017098574,1.19,
Department of Health,Salisbury NHS Foundation Trust,30-Sep-16,TISSUES HAND TOWELS & TOILET PAPER,Surgery,NHS LOGISTICS,1017098574,0.14,
Department of Health,Salisbury NHS Foundation Trust,30-Sep-16,DISPOSABLE THEATRE DRAPES WIPES,Surgery,NHS LOGISTICS,1017098574,1.30,
Department of Health,Salisbury NHS Foundation Trust,30-Sep-16,OTHER MEDICAL SUPPLIES,Surgery,NHS LOGISTICS,1017098574,5.10,
Department of Health,Salisbury NHS Foundation Trust,30-Sep-16,OTHER MEDICAL SUPPLIES,Surgery,NHS LOGISTICS,1017098574,5.10,
Department of Health,Salisbury NHS Foundation Trust,30-Sep-16,BAGS SACKS - OTHER,Facilities,NHS LOGISTICS,1017098574,23.52,
Department of Health,Salisbury NHS Foundation Trust,30-Sep-16,LIQUID REFRESHMENTS,Facilities,NHS LOGISTICS,1017098574,3.10,
Department of Health,Salisbury NHS Foundation Trust,30-Sep-16,LIQUID REFRESHMENTS,Facilities,NHS LOGISTICS,1017098574,0.51,
Department of Health,Salisbury NHS Foundation Trust,30-Sep-16,LIQUID REFRESHMENTS,Facilities,NHS LOGISTICS,1017098574,1.16,
Department of Health,Salisbury NHS Foundation Trust,30-Sep-16,COOKING & KITCHEN UTENSILS,Facilities,NHS LOGISTICS,1017098574,3.95,
Department of Health,Salisbury NHS Foundation Trust,30-Sep-16,STATIONERY SUNDRIES,Facilities,NHS LOGISTICS,1017098574,0.22,
Department of Health,Salisbury NHS Foundation Trust,30-Sep-16,LIQUID REFRESHMENTS,Facilities,NHS LOGISTICS,1017098574,2.63,
Department of Health,Salisbury NHS Foundation Trust,30-Sep-16,BEVERAGES & AMBIENT FOOD,Facilities,NHS LOGISTICS,1017098574,9.42,
Department of Health,Salisbury NHS Foundation Trust,30-Sep-16,LIQUID REFRESHMENTS,Facilities,NHS LOGISTICS,1017098574,0.51,
Department of Health,Salisbury NHS Foundation Trust,30-Sep-16,COOKING & KITCHEN UTENSILS,Facilities,NHS LOGISTICS,1017098574,3.90,
Department of Health,Salisbury NHS Foundation Trust,30-Sep-16,BEVERAGES & AMBIENT FOOD,Facilities,NHS LOGISTICS,1017098574,1.31,
Department of Health,Salisbury NHS Foundation Trust,30-Sep-16,BEVERAGES & AMBIENT FOOD,Facilities,NHS LOGISTICS,1017098574,20.02,
Department of Health,Salisbury NHS Foundation Trust,30-Sep-16,COOKING & KITCHEN UTENSILS,Facilities,NHS LOGISTICS,1017098574,3.36,
Department of Health,Salisbury NHS Foundation Trust,30-Sep-16,BEVERAGES & AMBIENT FOOD,Facilities,NHS LOGISTICS,1017098574,12.25,
Department of Health,Salisbury NHS Foundation Trust,30-Sep-16,BEVERAGES & AMBIENT FOOD,Facilities,NHS LOGISTICS,1017098574,4.35,
Department of Health,Salisbury NHS Foundation Trust,30-Sep-16,BEVERAGES & AMBIENT FOOD,Facilities,NHS LOGISTICS,1017098574,1.74,
Department of Health,Salisbury NHS Foundation Trust,30-Sep-16,FLAVOURINGS HERBS SPICES,Facilities,NHS LOGISTICS,1017098574,2.46,
Department of Health,Salisbury NHS Foundation Trust,30-Sep-16,LIQUID REFRESHMENTS,Facilities,NHS LOGISTICS,1017098574,43.52,
Department of Health,Salisbury NHS Foundation Trust,30-Sep-16,TISSUES HAND TOWELS & TOILET PAPER,Facilities,NHS LOGISTICS,1017098574,2.12,
Department of Health,Salisbury NHS Foundation Trust,30-Sep-16,BEVERAGES & AMBIENT FOOD,Facilities,NHS LOGISTICS,1017098574,2.91,
Department of Health,Salisbury NHS Foundation Trust,30-Sep-16,BEVERAGES & AMBIENT FOOD,Facilities,NHS LOGISTICS,1017098574,31.64,
Department of Health,Salisbury NHS Foundation Trust,30-Sep-16,BEVERAGES & AMBIENT FOOD,Facilities,NHS LOGISTICS,1017098574,1.36,
Department of Health,Salisbury NHS Foundation Trust,30-Sep-16,BEVERAGES & AMBIENT FOOD,Facilities,NHS LOGISTICS,1017098574,1.78,
Department of Health,Salisbury NHS Foundation Trust,30-Sep-16,COOKING & KITCHEN UTENSILS,Facilities,NHS LOGISTICS,1017098574,9.67,
Department of Health,Salisbury NHS Foundation Trust,30-Sep-16,LIQUID REFRESHMENTS,Facilities,NHS LOGISTICS,1017098574,0.93,
Department of Health,Salisbury NHS Foundation Trust,30-Sep-16,LIQUID REFRESHMENTS,Facilities,NHS LOGISTICS,1017098574,8.94,
Department of Health,Salisbury NHS Foundation Trust,30-Sep-16,LIQUID REFRESHMENTS,Facilities,NHS LOGISTICS,1017098574,2.65,
Department of Health,Salisbury NHS Foundation Trust,30-Sep-16,LIQUID REFRESHMENTS,Facilities,NHS LOGISTICS,1017098574,0.78,
Department of Health,Salisbury NHS Foundation Trust,30-Sep-16,LIQUID REFRESHMENTS,Facilities,NHS LOGISTICS,1017098574,8.40,
Department of Health,Salisbury NHS Foundation Trust,30-Sep-16,LIQUID REFRESHMENTS,Facilities,NHS LOGISTICS,1017098574,2.65,
Department of Health,Salisbury NHS Foundation Trust,30-Sep-16,LIQUID REFRESHMENTS,Facilities,NHS LOGISTICS,1017098574,2.00,
Department of Health,Salisbury NHS Foundation Trust,30-Sep-16,LIQUID REFRESHMENTS,Facilities,NHS LOGISTICS,1017098574,2.18,
Department of Health,Salisbury NHS Foundation Trust,30-Sep-16,MEDSURGCONS-OTHER,Surgery,NHS LOGISTICS,1017098574,5.03,
Department of Health,Salisbury NHS Foundation Trust,30-Sep-16,M & S EQUIPELECTEQUIPINST - OTHER,Clinical Support,NHS LOGISTICS,1017098574,16.67,
Department of Health,Salisbury NHS Foundation Trust,30-Sep-16,MEDSURGCONS-OTHER,Clinical Support,NHS LOGISTICS,1017098574,4.57,
Department of Health,Salisbury NHS Foundation Trust,30-Sep-16,BAGS SACKS - PLASTIC BAGS SACKS,Facilities,NHS LOGISTICS,1017098574,35.44,
Department of Health,Salisbury NHS Foundation Trust,30-Sep-16,LAB EQUIP-ANALYSERS,Clinical Support,BECKMAN COULTER,1362162,"42,627.04",
Department of Health,Salisbury NHS Foundation Trust,30-Sep-16,DRUGS,Clinical Support,JANSSEN-CILAG LTD,930226908,"22,754.04",
Department of Health,Salisbury NHS Foundation Trust,30-Sep-16,DRUGS,Clinical Support,JANSSEN-CILAG LTD,930226908,"4,550.81",
Department of Health,Salisbury NHS Foundation Trust,30-Sep-16,IN HOUSE - MECHANICAL,Corporate - ETS,TESGL LIMITED,i100842,"37,273.00",
Department of Health,Salisbury NHS Foundation Trust,30-Sep-16,BLDG STRUCTURES MAIN CONTR,Capital,R G SPILLER LTD,IN022402,"67,859.43",
Department of Health,Salisbury NHS Foundation Trust,30-Sep-16,BLDG STRUCTURES MAIN CONTR,Capital,R G SPILLER LTD,IN022402,"7,032.95",
Department of Health,Salisbury NHS Foundation Trust,30-Sep-16,SEATING GENERAL,Capital,PARKEON LTD,UK90408,"3,465.00",
Department of Health,Salisbury NHS Foundation Trust,30-Sep-16,SEATING GENERAL,Capital,PARKEON LTD,UK90408,"20,745.00",
